Workbook

Sheet 1
A1: Dochody bieżące za 2015 r.
A4: Dział | B4: Rozdział | C4: § | D4: Treść | E4: Dochody bieżące-plan | F4: Wykonanie 2015 r. | G4: Procent wykonania
A5: 1 | B5: 2 | C5: 3 | D5: 4 | E5: 5 | F5: 6 | G5: 7
A6: 010 | D6: Rolnictwo i łowiectwo | E6: =SUM(E7) -> 19135.18 | F6: =SUM(F7) -> 19135.18 | G6: =SUM(F6/E6*100%) -> 1
B7: 01095 | D7: Pozostała działalność | E7: =SUM(E8:E8) -> 19135.18 | F7: =SUM(F8:F8) -> 19135.18 | G7: 1
C8: 2010 | D8: Dotacje celowe otrzymane z budżetu państwa na realizację zadań bieżących z zakresu administracji rządowej oraz innych zadań zleconych gminom ustawami | E8: 19135.18 | F8: 19135.18 | G8: 1
A9: 020 | D9: Leśnictwo | E9: =SUM(E10) -> 1000 | F9: =SUM(F10) -> 819.35 | G9: 0.81935
B10: 02001 | D10: Gospodarka leśna | E10: =SUM(E11) -> 1000 | F10: =SUM(F11) -> 819.35 | G10: 0.81935
C11: 0490 | D11: Wpływy z innych lokalnych opłat pobieranych przez jst na podstawie odrębnych ustaw | E11: 1000 | F11: 819.35 | G11: 0.81935
A12: 600 | D12: Transport i łączność | E12: =SUM(E13) -> 17961.42 | F12: =SUM(F13) -> 16740.9 | G12: 0.9320476889
B13: 60016 | D13: Drogi publiczne gminne | E13: =SUM(E14:E16) -> 17961.42 | F13: =SUM(F14:F16) -> 16740.9 | G13: 0.9320476889
C14: 0690 | D14: Wpływy z różnych opłat | E14: 9000 | F14: 8093.7 | G14: 0.8993
C15: 0920 | D15: Pozostałe odsetki | E15: 500 | F15: 149.58 | G15: 0.29916
C16: 0970 | D16: Wpływy z różnych dochodów | E16: 8461.42 | F16: 8497.62 | G16: 1.004278242
A17: 700 | D17: Gospodarka mieszkaniowa | E17: =SUM(E18) -> 50000 | F17: =SUM(F18) -> 53665.67 | G17: 1.0733134
B18: 70005 | D18: Gospodarka gruntami i nieruchomościami | E18: =SUM(E19:E22) -> 50000 | F18: =SUM(F19:F22) -> 53665.67 | G18: 1.0733134
C19: 0470 | D19: Wpływy z opłat za zarząd, użytkowanie i użytkowanie wieczyste nieruchomości | E19: 5000 | F19: 5315.68 | G19: 1.063136
C20: 0750 | D20: Dochody z najmu i dzierżawy składników majątkowych Skarbu Państwa, jst lub innych jednostek zaliczanych do sektora finansów publicznych oraz innych umów o podobnym charakterze | E20: 43000 | F20: 46788.82 | G20: 1.088112093
C21: 0920 | D21: Pozostałe odsetki | E21: 1000 | F21: 1099.33 | G21: 1.09933
C22: 0970 | D22: Wpływy z różnych dochodów | E22: 1000 | F22: 461.84 | G22: 0.46184
A23: 750 | D23: Administracja Publiczna | E23: =SUM(E24+E27) -> 42542 | F23: =SUM(F24+F27) -> 45431.47 | G23: 1.067920408
B24: 75011 | D24: Urzędy Wojewódzkie | E24: =SUM(E25:E26) -> 37633 | F24: =SUM(F25:F26) -> 35939.91 | G24: 0.9550104961
C25: 2010 | D25: Dotacje celowe otrzymane z budżetu państwa na realizację zadań bieżących z zakresu administracji rządowej oraz innych zadań zleconych gminie ustawami | E25: 37533 | F25: 35915.11 | G25: 0.9568941998
C26: 2360 | D26: Dochody jst związane z realizacją zadań z zakresu administracji rządowej oraz innych zadań zleconych ustawami | E26: 100 | F26: 24.8 | G26: 0.248
B27: 75023 | D27: Urzędy Gmin | E27: =SUM(E28:E29) -> 4909 | F27: =SUM(F28:F29) -> 9491.56 | G27: 1.933501732
C28: 0920 | D28: Pozostałe odsetki | E28: 4409 | F28: 4361.56 | G28: 0.9892401905
C29: 0970 | D29: Wpływy z różnych dochodów | E29: 500 | F29: 5130 | G29: 10.26
A30: 751 | D30: Urzędy naczelnych organów władzy państwowej, kontroli i ochrony prawa oraz sądownictwa | E30: =SUM(E31+E33+E35+E37) -> 62097 | F30: =SUM(F31+F33+F35+F37) -> 62097 | G30: 1
B31: 75101 | D31: Urzędy naczelnych organów władzy państwowej, kontroli i ochrony prawa | E31: =SUM(E32) -> 914 | F31: =SUM(F32) -> 914 | G31: 1
C32: 2010 | D32: Dotacje celowe otrzymane z budżetu państwa na realizację zadań bieżących z zakresu administracji rządowej oraz innych zadań zleconych gminom ustawami | E32: 914 | F32: 914 | G32: 1
B33: 75107 | D33: Wybory Prezydenta Rzeczypospolitej Polskiej | E33: =SUM(E34) -> 29985 | F33: =SUM(F34) -> 29985 | G33: 1
C34: 2010 | D34: Dotacje celowe otrzymane z budżetu państwa na realizację zadań bieżących z zakresu administracji rządowej oraz innych zadań zleconych gminom ustawami | E34: 29985 | F34: 29985 | G34: 1
B35: 75108 | D35: Wybory do Sejmu i Senatu | E35: =SUM(E36) -> 17234 | F35: =SUM(F36) -> 17234 | G35: 1
C36: 2010 | D36: Dotacje celowe otrzymane z budżetu państwa na realizację zadań bieżących z zakresu administracji rządowej oraz innych zadań zleconych gminom ustawami | E36: 17234 | F36: 17234 | G36: 1
B37: 75110 | D37: Referenda ogólnokrajowe i konstytucyjne | E37: =SUM(E38) -> 13964 | F37: =SUM(F38) -> 13964 | G37: 1
C38: 2010 | D38: Dotacje celowe otrzymane z budżetu państwa na realizację zadań bieżących z zakresu administracji rządowej oraz innych zadań zleconych gminom ustawami | E38: 13964 | F38: 13964 | G38: 1
A39: 756 | D39: Dochody od osób prawnych, od osób fizycznych i od innych jednostek nieposiadających osobowości prawnej oraz wydatki związane z ich poborem | E39: =SUM(E40+E43+E51+E61+E69) -> 4535531 | F39: =SUM(F40+F43+F51+F61+F69) -> 4511820.49 | G39: 0.9947722747
B40: 75601 | D40: Wpływy z podatku dochodowego od osób fizycznych | E40: =SUM(E41:E42) -> 2100 | F40: =SUM(F41:F42) -> 12.85 | G40: 0.006119047619
C41: 0350 | D41: Podatek od działalności gospodarczej osób fizycznych, opłacany w formie karty podatkowej | E41: 2000 | F41: -4.03 | G41: -0.002015
C42: 0910 | D42: Odsetki od nieterminowych wpłat z tytułu podatków i opłat | E42: 100 | F42: 16.88 | G42: 0.1688
B43: 75615 | D43: Wpływy z podatku rolnego, leśnego,podatku od czynności cywilnoprawnych, podatków i opłat lokalnych od osób prawnych i innych jednostek organizacyjnych | E43: =SUM(E44:E50) -> 1194700 | F43: =SUM(F44:F50) -> 1212524.4 | G43: 1.014919561
C44: 0310 | D44: Podatek od nieruchomości | E44: 1120000 | F44: 1133286 | G44: 1.0118625
C45: 0320 | D45: Podatek rolny | E45: 1000 | F45: 472 | G45: 0.472
C46: 0330 | D46: Podatek leśny | E46: 60000 | F46: 65844 | G46: 1.0974
C47: 0340 | D47: Podatek od środków transportowych | E47: 4000 | F47: 4450 | G47: 1.1125
C48: 0500 | D48: Podatek od czynności cywilnoprawnych | E48: 3500 | F48: 1898 | G48: 0.5422857143
C49: 0690 | D49: Wpływy z różnych opłat | E49: 200 | F49: 227.4 | G49: 1.137
C50: 0910 | D50: Odsetki od nieterminowych wpłat z tytułu podatków i opłat | E50: 6000 | F50: 6347 | G50: 1.057833333
B51: 75616 | D51: Wpływy z podatku rolnego, leśnego,podatku od spadków i darowizn,podatku od czynności cywilnoprawnych oraz podatków i opłat od osób fizycznych | E51: =SUM(E52:E60) -> 639947 | F51: =SUM(F52:F60) -> 628732.06 | G51: 0.982475205
C52: 0310 | D52: Podatek od nieruchomości | E52: 275000 | F52: 279764.71 | G52: 1.017326218
C53: 0320 | D53: Podatek rolny | E53: 172000 | F53: 143033.92 | G53: 0.8315925581
C54: 0330 | D54: Podatek leśny | E54: 12000 | F54: 12586.95 | G54: 1.0489125
C55: 0340 | D55: Podatek od środków transportowych | E55: 90000 | F55: 97460.36 | G55: 1.082892889
C56: 0360 | D56: Podatek od spadków i darowizn | E56: 23000 | F56: 23888.61 | G56: 1.038635217
C57: 0430 | D57: Wpływy z opłaty targowej | E57: 500 | F57: 230 | G57: 0.46
C58: 0500 | D58: Podatek od czynności cywilnoprawnych | E58: 53000 | F58: 55986 | G58: 1.056339623
C59: 0690 | D59: Wpływy z różnych opłat | E59: 3600 | F59: 4333.4 | G59: 1.203722222
C60: 0910 | D60: Odsetki od nieterminowych wpłat z tytułu podatków i opłat | E60: 10847 | F60: 11448.11 | G60: 1.055417166
B61: 75618 | D61: Wpływy z innych opłat stanowiących dochody jednostek samorządu terytorialnego na podstawie ustaw | E61: =SUM(E62:E68) -> 595900 | F61: =SUM(F62:F68) -> 550337.39 | G61: 0.9235398389
C62: 0370 | D62: Wpływy z opłaty od posiadania psów | E62: 100 | F62: 10 | G62: 0.1
C63: 0400 | D63: Wpływy z opłaty produktowej | E63: 500 | F63: 454.46 | G63: 0.90892
C64: 0410 | D64: Wpływy z opłaty skarbowej | E64: 10000 | F64: 10799.25 | G64: 1.079925
C65: 0460 | D65: Wpływy z opłaty eksploatacyjnej | E65: 500000 | F65: 462903.6 | G65: 0.9258072
C66: 0480 | D66: Wpływy z opłat za zezwolenia na sprzedaż napojów alkoholowych | E66: 60000 | F66: 52667.41 | G66: 0.8777901667
C67: 0490 | D67: Wpływy z innych lokalnych opłat pobieranych przez jst na podstawie odrębnych ustaw | E67: 12300 | F67: 11278.72 | G67: 0.9169691057
C68: 0910 | D68: Odsetki od nieterminowych wpłat z tytułu podatków i opłat | E68: 13000 | F68: 12223.95 | G68: 0.9403038462
B69: 75621 | D69: Udziały gmin w podatkach stanowiących dochód budżetu państwa | E69: =SUM(E70:E71) -> 2102884 | F69: =SUM(F70:F71) -> 2120213.79 | G69: 1.008240963
C70: 0010 | D70: Podatek dochodowy od osób fizycznych | E70: 2097884 | F70: 2116071 | G70: 1.008669211
C71: 0020 | D71: Podatek dochodowy od osób prawnych | E71: 5000 | F71: 4142.79 | G71: 0.828558
A72: 758 | D72: Różne rozliczenia | E72: =SUM(E73+E75+E77) -> 6805897 | F72: =SUM(F73+F75+F77) -> 6805897 | G72: 1
B73: 75801 | D73: Część oświatowa subwencji ogólnej dla jednostek samorządu terytorialnego | E73: =SUM(E74) -> 4469412 | F73: =SUM(F74) -> 4469412 | G73: 1
C74: 2920 | D74: Subwencje ogólne z budżetu państwa | E74: 4469412 | F74: 4469412 | G74: 1
B75: 75807 | D75: Część wyrównawcza subwencji ogólnej dla gmin | E75: =SUM(E76) -> 2226594 | F75: =SUM(F76) -> 2226594 | G75: 1
C76: 2920 | D76: Subwencje ogólne z budżetu państwa | E76: 2226594 | F76: 2226594 | G76: 1
B77: 75831 | D77: Część równoważąca subwencji ogólnej dla gmin | E77: =SUM(E78) -> 109891 | F77: =SUM(F78) -> 109891 | G77: 1
C78: 2920 | D78: Subwencje ogólne z budżetu państwa | E78: 109891 | F78: 109891 | G78: 1
A79: 801 | D79: Oświata i wychowanie | E79: =SUM(E80+E88+E95+E86+E91) -> 274420 | F79: =SUM(F80+F88+F95+F86+F91) -> 262934.76 | G79: =SUM(F79/E79*100%) -> 0.9581472196
B80: 80101 | D80: Szkoły podstawowe | E80: =SUM(E81:E85) -> 45444 | F80: =SUM(F81:F85) -> 35573.88 | G80: 0.7828069712
C81: 0690 | D81: Wpływy z różnych opłat | E81: 100 | F81: 107 | G81: 1.07
C82: 0750 | D82: Dochody z najmu i dzierżawy składników majątkowych Skarbu Państwa, jst lub innych jednostek zaliczanych do sektora finansów publicznych oraz innych umów o podobnym charakterze | E82: 26000 | F82: 15821.35 | G82: 0.6085134615
C83: 0920 | D83: Pozostałe odsetki | E83: 500 | F83: 843.54 | G83: 1.68708
C84: 2010 | D84: Dotacje celowe otrzymane z budżetu państwa na realizację zadań bieżących z zakresu administracji rządowej oraz innych zadań zleconych gminom ustawami | E84: 18794 | F84: 18793.53 | G84: 0.999974992
C85: 2400 | D85: Wpływy do budżetu pozostałości środków finansowych gromadzonych na wydzielonym rachunku jednostki budzetowej | E85: 50 | F85: 8.46 | G85: 0.1692
B86: 80103 | D86: Oddziały przedszkolne w szkołach podstawowych | E86: =SUM(E87:E87) -> 73834 | F86: =SUM(F87:F87) -> 73834 | G86: 1
C87: 2030 | D87: Dotacje celowe otrzymane z budżetu państwa na realizację własnych zadań bieżących gmin | E87: 73834 | F87: 73834 | G87: 1
B88: 80104 | D88: Przedszkola | E88: =SUM(E89:E90) -> 57828 | F88: =SUM(F89:F90) -> 50569 | G88: 0.8744725738
C89: 0830 | D89: Wpływy z usług | E89: 12000 | F89: 4741 | G89: 0.3950833333
C90: 2030 | D90: Dotacje celowe otrzymane z budżetu państwa na realizację własnych zadań bieżących gmin | E90: 45828 | F90: 45828 | G90: 1
B91: 80106 | D91: Inne formy wychowania przedszkolnego | E91: =SUM(E92:E94) -> 62739 | F91: =SUM(F92:F94) -> 58702.62 | G91: 0.9356639411
C92: 0830 | D92: Wpływy z usług | E92: 8000 | F92: 5885 | G92: 0.735625
C93: 0970 | D93: Wpływy z różnych dochodów | E93: 0 | F93: 3796.68 | G93: 0
C94: 2030 | D94: Dotacje celowe otrzymane z budżetu państwa na realizację własnych zadań bieżących gmin | E94: 54739 | F94: 49020.94 | G94: 0.8955395605
B95: 80110 | D95: Gimnazja | E95: =SUM(E96:E98) -> 34575 | F95: =SUM(F96:F98) -> 44255.26 | G95: 1.279978597
C96: 0970 | D96: Wpływy z różnych dochodów | E96: 17000 | F96: 26721.01 | G96: 1.571824118
C97: 2010 | D97: Dotacje celowe otrzymane z budżetu państwa na realizację zadań bieżących z zakresu administracji rządowej oraz innych zadań zleconych gminom ustawami | E97: 17525 | F97: 17524.54 | G97: 0.9999737518
C98: 2400 | D98: Wpływy do budżetu pozostałości środków finansowych gromadzonych na wydzielonym rachunku jednostki budzetowej | E98: 50 | F98: 9.71 | G98: 0.1942
A99: 852 | D99: Pomoc Społeczna | E99: =SUM(E100+E104+E109+E113+E116+E119+E122+E102) -> 2817031 | F99: =SUM(F100+F104+F109+F113+F116+F119+F122+F102) -> 2759015.78 | G99: 0.9794055443
B100: 85202 | D100: Domy pomocy społecznej | E100: =SUM(E101) -> 6000 | F100: =SUM(F101) -> 6527.72 | G100: 1.087953333
C101: 0690 | D101: Wpływy z różnych opłat | E101: 6000 | F101: 6527.72 | G101: 1.087953333
B102: 85206 | D102: Wspieranie rodziny | E102: =SUM(E103) -> 24349 | F102: =SUM(F103) -> 7358.93 | G102: 0.3022271962
C103: 2030 | D103: Dotacje celowe otrzymane z budżetu państwa na realizację własnych zadań bieżących gmin | E103: 24349 | F103: 7358.93 | G103: 0.3022271962
B104: 85212 | D104: Świadczenia rodzinne , świadczeniaz funduszu alimentacyjnego oraz składki na ubezpieczenia emerytalne i rentowe z ubezpieczenia społecznego | E104: =SUM(E105:E108) -> 2233541 | F104: =SUM(F105:F108) -> 2195739.79 | G104: 0.9830756588
C105: 0920 | D105: Pozostałe odsetki | E105: 5000 | F105: 3624.78 | G105: 0.724956
C106: 2010 | D106: Dotacje celowe otrzymane z budżetu państwa na realizację zadań bieżących z zakresu administracji rządowej oraz innych zadań zleconych gminom ustawami | E106: 2198041 | F106: 2168468.45 | G106: 0.9865459516
C107: 2360 | D107: Dochody jst związane z realizacją zadań z zakresu administracji rządowej oraz innych zadań zleconych ustawami | E107: 10500 | F107: 9957.11 | G107: 0.9482961905
C108: 2910 | D108: Wpływy ze zwrotów dotacji oraz płatności, w tym wykorzystanych niezgodnie z przeznaczeniem lub wykorzystanych z naruszeniem procedur, o których mowa w art. 184 ustawy, pobranych nienaleznie lub w nadmiernej wysokości | E108: 20000 | F108: 13689.45 | G108: 0.6844725
B109: 85213 | D109: Składki na ubezpieczenie zdrowotne opłacane za osoby pobierające niektóre świadczenia z pomocy społecznej, niektóre świadczenia rodzinne oraz za osoby uczestniczące w zajęciach w centrum integracji społecznej | E109: =SUM(E110:E112) -> 37356 | F109: =SUM(F110:F112) -> 34521.71 | G109: 0.9241275833
C110: 2010 | D110: Dotacje celowe otrzymane z budżetu państwa na realizację zadań bieżących z zakresu administracji rządowej oraz innych zadań zleconych gminom ustawami | E110: 20564 | F110: 17881.93 | G110: 0.8695744991
C111: 2030 | D111: Dotacje celowe otrzymane z budżetu państwa na realizację własnych zadań bieżących gmin | E111: 16592 | F111: 16590.98 | G111: 0.9999385246
C112: 2910 | D112: Wpływy ze zwrotów dotacji oraz płatności, w tym wykorzystanych niezgodnie z przeznaczeniem lub wykorzystanych z naruszeniem procedur, o których mowa w art. 184 ustawy, pobranych nienaleznie lub w nadmiernej wysokości | E112: 200 | F112: 48.8 | G112: 0.244
B113: 85214 | D113: Zasiłki i pomoc w naturze oraz składki na ubezpieczenia emerytalne i rentowe | E113: =SUM(E114:E115) -> 154207 | F113: =SUM(F114:F115) -> 154207 | G113: 1
C114: 2030 | D114: Dotacje celowe otrzymane z budżetu państwa na realizację własnych zadań bieżących gmin | E114: 144285 | F114: 144285 | G114: 1
C115: 2039 | D115: Dotacje celowe przekazane z budżetu państwa na realizację własnych zadań bieżących gminy | E115: 9922 | F115: 9922 | G115: 1
B116: 85216 | D116: Zasiłki stałe | E116: =SUM(E117:E118) -> 187841 | F116: =SUM(F117:F118) -> 187053.83 | G116: 0.9958093813
C117: 2030 | D117: Dotacje celowe otrzymane z budżetu państwa na realizację własnych zadań bieżących gmin | E117: 186441 | F117: 186441 | G117: 1
C118: 2910 | D118: Wpływy ze zwrotów dotacji oraz płatności, w tym wykorzystanych niezgodnie z przeznaczeniem lub wykorzystanych z naruszeniem procedur, o których mowa w art. 184 ustawy, pobranych nienaleznie lub w nadmiernej wysokości | E118: 1400 | F118: 612.83 | G118: 0.4377357143
B119: 85219 | D119: Ośrodki pomocy społecznej | E119: =SUM(E120:E121) -> 119263 | F119: =SUM(F120:F121) -> 119278.99 | G119: 1.000134073
C120: 0920 | D120: Pozostałe odsetki | E120: 850 | F120: 1016.51 | G120: 1.195894118
C121: 2030 | D121: Dotacje celowe otrzymane z budżetu państwa na realizację własnych zadań bieżących gmin | E121: 118413 | F121: 118262.48 | G121: 0.9987288558
B122: 85295 | D122: Pozostała działalność | E122: =SUM(E123:E124) -> 54474 | F122: =SUM(F123:F124) -> 54327.81 | G122: 0.9973163344
C123: 2010 | D123: Dotacje celowe otrzymane z budżetu państwa na realizację zadań bieżących z zakresu administracji rządowej oraz innych zadań zleconych gminom ustawami | E123: 1974 | F123: 1827.81 | G123: 0.9259422492
C124: 2030 | D124: Dotacje celowe otrzymane z budżetu państwa na realizację własnych zadań bieżących gmin | E124: 52500 | F124: 52500 | G124: 1
A125: 853 | D125: Pozostałe zadania w zakresie polityki społecznej | E125: =SUM(E126) -> 276984.58 | F125: =SUM(F126) -> 264841.82 | G125: 0.9561608809
B126: 85395 | D126: Pozostała działalność | E126: =SUM(E127:E130) -> 276984.58 | F126: =SUM(F127:F130) -> 264841.82 | G126: 0.9561608809
C127: 0920 | D127: Pozostałe odsetki | E127: 200 | F127: 177.16 | G127: 0.8858
C128: 0970 | D128: Wpływy z różnych dochodów | E128: 100 | F128: 70.13 | G128: 0.7013
C129: 2007 | D129: Dotacje celowe w ramach programów finansowanych z udziałem środków europejskich oraz środków, o których mowa w art. 5 ust.1 pkt.3 oraz ust 3 pkt 5 i 6 ustawy,lub płatności w ramach budżetu środków europejskich, z wyłaczeniem dochodów klasyfikowanych w paragrafie 205 | E129: 243516.23 | F129: 233433.55 | G129: 0.9585954497
C130: 2009 | D130: Dotacje celowe w ramach programów finansowanych z udziałem środków europejskich oraz środków, o których mowa w art. 5 ust.1 pkt.3 oraz ust 3 pkt 5 i 6 ustawy,lub płatności w ramach budżetu środków europejskich, z wyłaczeniem dochodów klasyfikowanych w paragrafie 205 | E130: 33168.35 | F130: 31160.98 | G130: 0.9394793531
A131: 854 | D131: Edukacyjna opieka wychowawcza | E131: =SUM(E132) -> 135925 | F131: =SUM(F132) -> 135925 | G131: 1
B132: 85415 | D132: Pomoc materialna dla uczniów | E132: =SUM(E133:E134) -> 135925 | F132: =SUM(F133:F134) -> 135925 | G132: 1
C133: 2030 | D133: Dotacje celowe otrzymane z budżetu państwa na realizację własnych zadań bieżących gmin | E133: 131200 | F133: 131200 | G133: 1
C134: 2040 | D134: Dotacje celowe otrzymane z budżetu państwa na realizację zadań bieżących gmin z zakresu edukacyjnej opieki wychowawczej finansowanych w całości przez budżet państwa w ramach programów rządowych | E134: 4725 | F134: 4725 | G134: 1
A135: 900 | D135: Gospodarka komunalna i ochrona środowiska | E135: =SUM(E136+E140+E143) -> 275450 | F135: =SUM(F136+F140+F143) -> 263217.41 | G135: 0.9555905246
B136: 90002 | D136: Gospodarka odpadami | E136: =SUM(E137:E139) -> 247950 | F136: =SUM(F137:F139) -> 236133.8 | G136: 0.9523444243
C137: 0490 | D137: Wpływy z innych lokalnych opłat pobieranych przez jst na podstawie odrębnych ustaw | E137: 245200 | F137: 232197.6 | G137: 0.9469722675
C138: 0690 | D138: Wpływy z różnych opłat | E138: 2650 | F138: 3907.2 | G138: 1.474415094
C139: 0910 | D139: Odsetki od nieterminowych wpłat z tytułu podatków i opłat | E139: 100 | F139: 29 | G139: 0.29
B140: 90019 | D140: Wpływy i wydatki związane z gromadzeniem środków z opłat i kar za korzystanie ze środowiska | E140: =SUM(E141:E142) -> 26600 | F140: =SUM(F141:F142) -> 26183.61 | G140: 0.9843462406
C141: 0690 | D141: Wpływy z różnych opłat | E141: 11800 | F141: 11383.61 | G141: 0.9647127119
C142: 2020 | D142: Dotacje celowe otrzymane z budżetu państwana zadania bieżące realizowane przez gminę na podstawie porozumieńz organami administracji rządowej | E142: 14800 | F142: 14800 | G142: 1
B143: 90095 | D143: Pozostała działalnośc | E143: =SUM(E144) -> 900 | F143: =SUM(F144) -> 900 | G143: 1
C144: 0970 | D144: Wpływy z różnych dochodów | E144: 900 | F144: 900 | G144: 1
A145: Dochody bieżące ogółem | E145: =SUM(E6+E9+E12+E17+E23+E30+E39+E72+E79+E99+E125+E131+E135) -> 15313974.18 | F145: =SUM(F6+F9+F12+F17+F23+F30+F39+F72+F79+F99+F125+F131+F135) -> 15201541.83 | G145: 0.992658186
D148: Dochody majątkowe za 2015 r.
A149: Dział | B149: Rozdział | C149: § | D149: Treść | E149: Dochody majątkowe-plan | F149: Wykonanie 2015 r. | G149: Procent wykonania
A150: 010 | D150: Rolnictwo i łowiectwo | E150: =SUM(E151) -> 1260729 | F150: =SUM(F151) -> 1039184 | G150: =SUM(F150/E150)*100% -> 0.8242723059
B151: 01010 | D151: Infrastruktura wodociągowa i sanitacyjna wsi | E151: =SUM(E152:E153) -> 1260729 | F151: =SUM(F152:F153) -> 1039184 | G151: =SUM(F151/E151)*100% -> 0.8242723059
C152: 6207 | D152: Dotacje celowe w ramach programów finansowanych z udziałem środków europejskich oraz środków, o których mowa w art. 5 ust.1 pkt.3 oraz ust 3 pkt 5 i 6 ustawy,lub płatności w ramach budżetu środków europejskich, z wyłączeniem dochodów klasyfikowanych w paragrafie 625 | E152: 1199229 | F152: 977684 | G152: =SUM(F152/E152)*100% -> 0.8152604715
C153: 6680 | D153: Wpłata środków finansowych z niewykorzystanych w terminie wydatków, które nie wygasają z upływem roku budżetowego | E153: 61500 | F153: 61500 | G153: =SUM(F153/E153)*100% -> 1
A154: 700 | D154: Gospodarka mieszkaniowa | E154: =SUM(E155) -> 150000 | F154: =SUM(F155) -> 0 | G154: 0
B155: 70005 | D155: Gospodarka gruntami i nieruchomościami | E155: =SUM(E156) -> 150000 | F155: =SUM(F156) -> 0 | G155: =SUM(G156) -> 0
C156: 0770 | D156: Wpłaty z tytułu odpłatnego nabycia prawa własności oraz prawa użytkowania wieczystego nieruchomości | E156: 150000 | F156: 0 | G156: 0
A157: 720 | D157: Informatyka | E157: =SUM(E158) -> 213683 | F157: =SUM(F158) -> 157887.48 | G157: =SUM(F157/E157*100%) -> 0.7388864814
B158: 72095 | D158: Pozostała działalność | E158: =SUM(E159) -> 213683 | F158: =SUM(F159) -> 157887.48 | G158: 0.7388864814
C159: 6207 | D159: Dotacje celowe w ramach programów finansowanych z udziałem środków europejskich oraz środków, o których mowa w art. 5 ust.1 pkt.3 oraz ust 3 pkt 5 i 6 ustawy,lub płatności w ramach budżetu środków europejskich, z wyłączeniem dochodów klasyfikowanych w paragrafie 625 | E159: 213683 | F159: 157887.48 | G159: 0.7388864814
A160: 853 | D160: Pozostałe zadania w zakresie polityki społecznej | E160: =SUM(E161) -> 73000 | F160: =SUM(F161) -> 72838 | G160: 0.9977808219
B161: 85395 | D161: Pozostała działalność | E161: =SUM(E162) -> 73000 | F161: =SUM(F162) -> 72838 | G161: 0.9977808219
C162: 6207 | D162: Dotacje celowe w ramach programów finansowanych z udziałem środków europejskich oraz środków, o których mowa w art. 5 ust.1 pkt.3 oraz ust 3 pkt 5 i 6 ustawy,lub płatności w ramach budżetu środków europejskich, z wyłączeniem dochodów klasyfikowanych w paragrafie 625 | E162: 73000 | F162: 72838 | G162: 0.9977808219
A163: 900 | D163: Gospodarka komunalna i ochrona środowiska | E163: =SUM(E164) -> 95000 | F163: =SUM(F164) -> 42364.23 | G163: 0.4459392632
B164: 90001 | D164: Gospodarka ściekowa i ochrona wód | E164: =SUM(E165) -> 95000 | F164: =SUM(F165) -> 42364.23 | G164: 0.4459392632
C165: 6660 | D165: Wpływy ze zwrotów dotacji oraz płatności, w tym wykorzystanych niezgodnie z przeznaczeniem lub wykorzystanych z naruszeniem procedur,o których mowa w art. 184 ustawy,pobranych nienależnie lub w nadmiernej wysokości, dotyczące dochodów majątkowych | E165: 95000 | F165: 42364.23 | G165: 0.4459392632
A166: 921 | D166: Kultura i ochrona dziedzictwa narodowego | E166: =SUM(E167) -> 230000 | F166: =SUM(F167) -> 227641.8 | G166: 0.9897469565
B167: 92195 | D167: Pozostała działalność | E167: =SUM(E168) -> 230000 | F167: =SUM(F168) -> 227641.8 | G167: 0.9897469565
C168: 6207 | D168: Dotacje celowe w ramach programów finansowanych z udziałem środków europejskich oraz środków, o których mowa w art. 5 ust.1 pkt.3 oraz ust 3 pkt 5 i 6 ustawy,lub płatności w ramach budżetu środków europejskich, z wyłączeniem dochodów klasyfikowanych w paragrafie 625 | E168: 230000 | F168: 227641.8 | G168: 0.9897469565
D169: Dochody majątkowe ogółem | E169: =SUM(E150+E157+E160+E163+E166+E154) -> 2022412 | F169: =SUM(F150+F157+F160+F163+F166+F154) -> 1539915.51 | G169: 0.7614252239
D171: Dochody gminy ogółem | E171: =SUM(E145+E169) -> 17336386.18 | F171: =SUM(F145+F169) -> 16741457.34 | G171: 0.9656832264

Sheet 2
A1: Wydatki bieżące budżetu gminy - wykonanie za 2015 r.
A3: Dział | B3: Rozdział | C3: Nazwa | D3: Plan wydatki bieżące | E3: wykonanie wydatki bieżące | F3: Procent wykonania | G3: w tym:
G4: Wydatki jednostek budżetowych | K4: Dotacje na zadania bieżące -plan | L4: Dotacje na zadania bieżące- wykonani | M4: Świadczenia na rzecz osób fizycznych -plan | N4: Świadczenia na rzecz osób fizycznych- wykonanie | O4: Wydatki na programy finansowane z udziałem środków, o których mowa w art. 5 ust. 1 pkt 2 i 3 -plan | P4: Wydatki na programy finansowane z udziałem środków, o których mowa w art. 5 ust. 1 pkt 2 i 3 -wykonanie | Q4: Wydatki na na obsługę długu (odsetki) -plan | R4: Wydatki na na obsługę długu (odsetki) -wykonanie
G5: wynagrodzenia i skŁadki od nich naliczane -plan | H5: wynagrodzenia i skadki od nich naliczane -wykonanie | I5: wydatki związane z realizacją statutowych zadań -plan | J5: wydatki związane z realizacją statutowych zadań- wykonanie
A6: 1 | B6: 2 | C6: 3 | D6: 4 | E6: 5 | G6: 6 | I6: 7 | K6: 8 | M6: 9 | O6: 10 | R6: 11
A7: 010 | C7: Rolnictwo i Łowiectwo | D7: =SUM(D8:D10) -> 101588.3 | E7: =SUM(E8:E10) -> 85863.19 | F7: =SUM(E7/D7*100%) -> 0.8452074698 | G7: =SUM(G8:G10) -> 1500 | H7: 1225 | I7: 100088.3 | J7: 84638.19 | K7: 0 | L7: 0 | M7: 0 | N7: 0 | O7: 0 | P7: 0 | Q7: 0 | R7: =SUM(R8:R10) -> 0
B8: 01010 | C8: Infrastruktura wodociagowa i sanitacyjna wsi | D8: 38000 | E8: 27052.71 | F8: =SUM(E8/D8*100%) -> 0.7119134211 | G8: 1500 | H8: 1225 | I8: 36500 | J8: 25827.71 | K8: 0 | L8: 0 | M8: 0 | N8: 0 | O8: 0 | P8: 0 | Q8: 0 | R8: 0
B9: 01030 | C9: Izby rolnicze | D9: 4420 | E9: 2933.17 | F9: 0.6636131222 | G9: 0 | H9: 0 | I9: 4420 | J9: 2933.17 | K9: 0 | L9: 0 | M9: 0 | N9: 0 | O9: 0 | P9: 0 | Q9: 0 | R9: 0
B10: 01095 | C10: Pozostała działalność | D10: 59168.3 | E10: 55877.31 | F10: 0.9443791693 | G10: 0 | H10: 0 | I10: 59168.3 | J10: 55877.31 | K10: 0 | L10: 0 | M10: 0 | N10: 0 | O10: 0 | P10: 0 | Q10: 0 | R10: 0
A11: 400 | C11: Wytwarzanie i zaopatrywanie w energię elektryczną, gaz i wodę | D11: =SUM(D12) -> 119000 | E11: =SUM(E12) -> 118998.99 | F11: 0.9999915126 | G11: 0 | H11: 0 | I11: 0 | J11: 0 | K11: =SUM(K12) -> 119000 | L11: =SUM(L12) -> 118998.99 | M11: 0 | N11: 0 | O11: 0 | P11: 0 | Q11: 0 | R11: 0
B12: 40002 | C12: Dostarczanie wody | D12: 119000 | E12: 118998.99 | F12: 0.9999915126 | G12: 0 | H12: 0 | I12: 0 | J12: 0 | K12: 119000 | L12: 118998.99 | M12: 0 | N12: 0 | O12: 0 | P12: 0 | Q12: 0 | R12: 0
A13: 600 | C13: Transport i łączność | D13: =SUM(D14:D17) -> 317750 | E13: =SUM(E14:E17) -> 298678.77 | F13: 0.9399803934 | G13: =SUM(G14:G17) -> 49000 | H13: 43429.29 | I13: 187650 | J13: 174574.97 | K13: 80000 | L13: 79999.11 | M13: 1100 | N13: 675.4 | O13: 0 | P13: 0 | Q13: 0 | R13: 0
B14: 60004 | C14: Lokalny transport zbiorowy | D14: 14000 | E14: 6611.61 | F14: 0.4722578571 | G14: 0 | H14: 0 | I14: 14000 | J14: 6611.61 | K14: 0 | L14: 0 | M14: 0 | N14: 0 | O14: 0 | P14: 0 | Q14: 0 | R14: 0
B15: 60011 | C15: Drogi publiczne krajowe | D15: 800 | E15: 800 | F15: 1 | G15: 0 | H15: 0 | I15: 800 | J15: 800 | K15: 0 | L15: 0 | M15: 0 | N15: 0 | O15: 0 | P15: 0 | Q15: 0
B16: 60014 | C16: Drogi publiczne powiatowe | D16: 10500 | E16: 10391.94 | F16: 0.9897085714 | G16: 0 | H16: 0 | I16: 10500 | J16: 10391.94 | K16: 0 | L16: 0 | M16: 0 | N16: 0 | O16: 0 | P16: 0 | Q16: 0 | R16: 0
B17: 60016 | C17: Drogi publiczne gminne | D17: 292450 | E17: 280875.22 | F17: 0.960421337 | G17: 49000 | H17: 43429.29 | I17: 162350 | J17: 156771.42 | K17: 80000 | L17: 79999.11 | M17: 1100 | N17: 675.4 | O17: 0 | P17: 0 | Q17: 0 | R17: 0
A18: 700 | C18: Gospodarka mieszkaniowa | D18: =SUM(D19) -> 211905 | E18: =SUM(E19) -> 203155.27 | F18: 0.9587091857 | G18: =SUM(G19) -> 500 | H18: =SUM(H19) -> 500 | I18: =SUM(I19) -> 211405 | J18: =SUM(J19) -> 202655.27 | K18: 0 | L18: 0 | M18: 0 | N18: 0 | O18: 0 | P18: 0 | Q18: 0 | R18: 0
B19: 70005 | C19: Gospodarka gruntami i nieruchomościami | D19: 211905 | E19: 203155.27 | F19: 0.9587091857 | G19: 500 | H19: 500 | I19: 211405 | J19: 202655.27 | K19: 0 | L19: 0 | M19: 0 | N19: 0 | O19: 0 | P19: 0 | Q19: 0 | R19: 0
A20: 710 | C20: Działalność usługowa | D20: =SUM(D21:D23) -> 85500 | E20: =SUM(E21:E23) -> 1435.5 | F20: 0.01678947368 | G20: 0 | H20: 0 | I20: =SUM(I21:I23) -> 85500 | J20: =SUM(J21:J23) -> 1435.5 | K20: 0 | L20: 0 | M20: 0 | N20: 0 | O20: 0 | P20: 0 | Q20: 0 | R20: 0
B21: 71004 | C21: Plany zagospodarowania przestrzennego | D21: 83000 | E21: 0 | F21: 0 | G21: 0 | H21: 0 | I21: 83000 | J21: 0 | K21: 0 | L21: 0 | M21: 0 | N21: 0 | O21: 0 | P21: 0 | Q21: 0 | R21: 0
B22: 71035 | C22: Cmentarze | D22: 1500 | E22: 839.5 | F22: 0.5596666667 | G22: 0 | H22: 0 | I22: 1500 | J22: 839.5 | K22: 0 | L22: 0 | M22: 0 | N22: 0 | O22: 0 | P22: 0 | Q22: 0 | R22: 0
B23: 71095 | C23: Pozostała działalność | D23: 1000 | E23: 596 | F23: 0.596 | G23: 0 | H23: 0 | I23: 1000 | J23: 596 | K23: 0 | L23: 0 | M23: 0 | N23: 0 | O23: 0 | P23: 0 | Q23: 0 | R23: 0
A24: 750 | C24: Administracja publiczna | D24: =SUM(D25:D29) -> 1696933 | E24: =SUM(E25:E29) -> 1680542.05 | F24: 0.9903408384 | G24: =SUM(G25:G29) -> 1287533 | H24: =SUM(H25:H29) -> 1284488.45 | I24: =SUM(I25:I29) -> 278600 | J24: =SUM(J25:J29) -> 268453.09 | K24: 0 | L24: 0 | M24: =SUM(M25:M29) -> 130800 | N24: =SUM(N25:N29) -> 127600.51 | O24: 0 | P24: 0 | Q24: 0 | R24: 0
B25: 75011 | C25: Urzędy Wojewódzkie | D25: 37533 | E25: 35915.11 | F25: 0.9568941998 | G25: 37533 | H25: 35915.11 | I25: 0 | J25: 0 | K25: 0 | L25: 0 | M25: 0 | N25: 0 | O25: 0 | P25: 0 | Q25: 0 | R25: 0
B26: 75022 | C26: Rady Gmin | D26: 117000 | E26: 113582.18 | F26: 0.9707878632 | G26: 0 | H26: 0 | I26: 4000 | J26: 3661.75 | K26: 0 | L26: 0 | M26: 113000 | N26: 109920.43 | O26: 0 | P26: 0 | Q26: 0 | R26: 0
B27: 75023 | C27: Urzędy Gmin | D27: 1439600 | E27: 1429939.64 | F27: 0.9932895527 | G27: 1227000 | H27: 1225628.34 | I27: 210400 | J27: 202211.22 | K27: 0 | L27: 0 | M27: 2200 | N27: 2100.08 | O27: 0 | P27: 0 | Q27: 0 | R27: 0
B28: 75075 | C28: Promocja jednostek samorządu terytorialnego | D28: 40200 | E28: 38942.92 | F28: 0.9687293532 | G28: 0 | H28: 0 | I28: 40200 | J28: 38942.92 | K28: 0 | L28: 0 | M28: 0 | N28: 0 | P28: 0 | Q28: 0 | R28: 0
B29: 75095 | C29: Pozostała działalność | D29: 62600 | E29: 62162.2 | F29: 0.9930063898 | G29: 23000 | H29: 22945 | I29: 24000 | J29: 23637.2 | K29: 0 | L29: 0 | M29: 15600 | N29: 15580 | O29: 0 | P29: 0 | Q29: 0 | R29: 0
A30: 751 | C30: Urzędy naczelnych organów władzy, kontroli i ochrony prawa oraz sądownictwa | D30: =SUM(D31:D34) -> 62097 | E30: =SUM(E31:E34) -> 62097 | F30: 1 | G30: 14668.1 | H30: 14668.1 | I30: 12508.9 | J30: 12508.9 | K30: 0 | L30: 0 | M30: 34920 | N30: 34920 | O30: 0 | P30: 0 | Q30: 0 | R30: 0
B31: 75101 | C31: Urzędy naczelnych organów władzy, kontroli i ochrony prawa | D31: 914 | E31: 914 | F31: 1 | G31: 914 | H31: 914 | I31: 0 | J31: 0 | K31: 0 | L31: 0 | M31: 0 | N31: 0 | O31: 0 | P31: 0 | Q31: 0 | R31: 0
B32: 75107 | C32: Wybory Prezydenta Rzeczypospolitej Polskiej | D32: 29985 | E32: 29985 | F32: 1 | G32: 5439.65 | H32: 5439.65 | I32: 6545.35 | J32: 6545.35 | K32: 0 | L32: 0 | M32: 18000 | N32: 18000 | O32: 0 | P32: 0 | Q32: 0 | R32: 0
B33: 75108 | C33: Wybory do Sejmu i Senatu | D33: 17234 | E33: 17234 | F33: 1 | G33: 4644.77 | H33: 4644.77 | I33: 3589.23 | J33: 3589.23 | K33: 0 | L33: 0 | M33: 9000 | N33: 9000 | O33: 0 | P33: 0 | Q33: 0 | R33: 0
B34: 75110 | C34: Referenda ogólnokrajowe i konstytucyjne | D34: 13964 | E34: 13964 | F34: 1 | G34: 3669.68 | H34: 3669.68 | I34: 2374.32 | J34: 2374.32 | K34: 0 | L34: 0 | M34: 7920 | N34: 7920 | O34: 0 | P34: 0 | Q34: 0 | R34: 0
A35: 754 | C35: Bezpieczeństwo publiczne i ochrona przeciwpożarowa | D35: =SUM(D36:D38) -> 92050 | E35: =SUM(E36:E38) -> 53871.21 | F35: 0.585238566 | G35: =SUM(G36:G38) -> 8450 | H35: =SUM(H36:H38) -> 8431.2 | I35: 64900 | J35: 27144.87 | K35: 0 | L35: 0 | M35: 18700 | N35: 18295.14 | O35: 0 | P35: 0 | Q35: 0 | R35: 0
B36: 75405 | C36: Komendy powiatowe Policji | D36: 3200 | E36: 3200 | F36: 1 | G36: 0 | H36: 0 | I36: 3200 | J36: 3200 | K36: 0 | L36: 0 | M36: 0 | N36: 0 | O36: 0 | P36: 0 | Q36: 0 | R36: 0
B37: 75412 | C37: Ochotnicze straże pożarne | D37: 55850 | E37: 50671.21 | F37: 0.9072732319 | G37: 8450 | H37: 8431.2 | I37: 28700 | J37: 23944.87 | K37: 0 | L37: 0 | M37: 18700 | N37: 18295.14 | O37: 0 | P37: 0 | Q37: 0 | R37: 0
B38: 75421 | C38: Zarządzanie kryzysowe | D38: 33000 | E38: 0 | F38: 0 | G38: 0 | H38: 0 | I38: 33000 | J38: 0 | K38: 0 | L38: 0 | M38: 0 | N38: 0 | O38: 0 | P38: 0 | Q38: 0 | R38: 0
A39: 757 | C39: Obsługa długu publicznego | D39: =SUM(D40) -> 130000 | E39: 127233.77 | F39: 0.9787213077 | G39: 0 | H39: 0 | I39: 0 | J39: 0 | K39: 0 | L39: 0 | M39: 0 | N39: 0 | O39: 0 | P39: 0 | Q39: =SUM(Q40) -> 130000 | R39: 127233.77
B40: 75702 | C40: Obsługa papierów wartościowych, kredytów i pożyczek jst | D40: 130000 | E40: 127233.77 | F40: 0.9787213077 | G40: 0 | H40: 0 | I40: 0 | J40: 0 | K40: 0 | L40: 0 | M40: 0 | N40: 0 | O40: 0 | P40: 0 | Q40: 130000 | R40: 127233.77
A41: 758 | C41: Różne rozliczenia | D41: =SUM(D42) -> 450 | E41: 0 | F41: 0 | G41: 0 | H41: 0 | I41: 450 | J41: 0 | K41: 0 | L41: 0 | M41: 0 | N41: 0 | O41: 0 | P41: 0 | Q41: 0 | R41: 0
B42: 75818 | C42: Rezerwy ogólne i celowe | D42: 450 | E42: 0 | F42: 0 | G42: 0 | H42: 0 | I42: 450 | J42: 0 | K42: 0 | L42: 0 | M42: 0 | N42: 0 | O42: 0 | Q42: 0 | R42: 0
A43: 801 | C43: Oświata i wychowanie | D43: =SUM(D44:D52) -> 6779256 | E43: 6762425.12 | F43: 0.9975172969 | G43: 4880031.81 | H43: 4878549.88 | I43: 1246034.77 | J43: 1234419.31 | K43: 375000 | L43: 371300.61 | M43: 278189.42 | N43: 278155.32 | O43: 0 | P43: 0 | Q43: 0 | R43: 0
B44: 80101 | C44: Szkoły podstawowe | D44: 3406310 | E44: 3402503.32 | F44: 0.9988824623 | G44: 2630642 | H44: 2630568.15 | I44: 254830.53 | J44: 254803.95 | K44: 375000 | L44: 371300.61 | M44: 145837.47 | N44: 145830.61 | O44: 0 | P44: 0 | Q44: 0 | R44: 0
B45: 80103 | C45: Oddziały przedszkolne w szkołach podstawowych | D45: 250023 | E45: 250012.61 | F45: 0.9999584438 | G45: 210946 | H45: 210936.81 | I45: 25677 | J45: 25676 | K45: 0 | L45: 0 | M45: 13400 | N45: 13399.8 | O45: 0 | P45: 0 | Q45: 0 | R45: 0
B46: 80104 | C46: Przedszkola | D46: 230369 | E46: 230012.7 | F46: 0.9984533509 | G46: 206160 | H46: 205921.84 | I46: 16209 | J46: 16117.18 | K46: 0 | L46: 0 | M46: 8000 | N46: 7973.68 | O46: 0 | P46: 0 | Q46: 0 | R46: 0
B47: 80106 | C47: Inne formy wychowania przedszkolnego | D47: 322719 | E47: 322702.52 | F47: 0.9999489339 | G47: 238278 | H47: 238269.35 | I47: 68639 | J47: 68631.89 | K47: 0 | L47: 0 | M47: 15802 | N47: 15801.28
B48: 80110 | C48: Gimnazja | D48: 2151879.52 | E48: 2149951.45 | F48: 0.9991040065 | G48: 1485308.52 | H48: 1485306.76 | I48: 573916.29 | J48: 571989.98 | K48: 0 | L48: 0 | M48: 92654.71 | N48: 92654.71 | O48: 0 | P48: 0 | Q48: 0 | R48: 0
B49: 80113 | C49: Dowożenie uczniów do szkół | D49: 302500 | E49: 293696.21 | F49: 0.970896562 | G49: 66700 | H49: 65549.68 | I49: 235800 | J49: 228146.53 | K49: 0 | L49: 0 | M49: 0 | N49: 0 | O49: 0 | P49: 0 | Q49: 0 | R49: 0
B50: 80146 | C50: Dokształacanie i doskonalenie nauczycieli | D50: 5500 | E50: 5460 | F50: 0.9927272727 | G50: 0 | H50: 0 | I50: 5500 | J50: 5460 | K50: 0 | L50: 0 | M50: 0 | N50: 0 | O50: 0 | P50: 0 | Q50: 0 | R50: 0
B51: 80150 | C51: Realizacja zadań wymagających stosowania specjalnej organizacji nauki i metod pracy dla dzieci i młodzieży w szkołach podstawowych, gimnazjach, liceach ogólnokształcących, liceach profilowanych i szkołach zawodowych | D51: 46220.48 | E51: 46220.48 | F51: 1 | G51: 41997.29 | H51: 41997.29 | I51: 1727.95 | J51: 1727.95 | K51: 0 | L51: 0 | M51: 2495.24 | N51: 2495.24
B52: 80195 | C52: Pozostała działalność | D52: 63735 | E52: 61865.83 | F52: 0.9706727858 | G52: 0 | H52: 0 | I52: 63735 | J52: 61865.83 | K52: 0 | L52: 0 | M52: 0 | N52: 0 | O52: 0 | P52: 0 | Q52: 0 | R52: 0
A53: 851 | C53: Ochrona zdrowia | D53: =SUM(D54:D55) -> 78560 | E53: =SUM(E54:E55) -> 54889.41 | F53: 0.6986941191 | G53: =SUM(G54:G55) -> 26600 | H53: 26275.39 | I53: 41960 | J53: 23614.02 | K53: 10000 | L53: 5000 | M53: 0 | N53: 0 | O53: 0 | P53: 0 | Q53: 0 | R53: 0
B54: 85153 | C54: Zwalczanie narkomanii | D54: 6000 | E54: 2263.65 | F54: 0.377275 | G54: 0 | H54: 0 | I54: 6000 | J54: 2263.65 | K54: 0 | L54: 0 | M54: 0 | N54: 0 | O54: 0 | P54: 0 | Q54: 0 | R54: 0
B55: 85154 | C55: Przeciwdziałanie alkoholizmowi | D55: 72560 | E55: 52625.76 | F55: 0.7252723264 | G55: 26600 | H55: 26275.39 | I55: 35960 | J55: 21350.37 | K55: 10000 | L55: 5000 | M55: 0 | N55: 0 | O55: 0 | P55: 0 | Q55: 0 | R55: 0
A56: 852 | C56: Pomoc społeczna | D56: =SUM(D57:D67) -> 3276387 | E56: 3196281.58 | F56: 0.9755506843 | G56: 553484 | H56: 527575.06 | I56: 206999 | J56: 183271.54 | K56: 0 | L56: 0 | M56: 2505982 | N56: 2475512.98 | O56: 9922 | P56: 9922 | Q56: 0 | R56: 0
B57: 85202 | C57: Domy pomocy społecznej | D57: 60000 | E57: 49981.94 | F57: 0.8330323333 | G57: 0 | H57: 0 | I57: 60000 | J57: 49981.94 | K57: 0 | L57: 0 | M57: 0 | N57: 0 | O57: 0 | P57: 0 | Q57: 0 | R57: 0
B58: 85206 | C58: Wspieranie rodziny | D58: 24349 | E58: 7358.93 | F58: 0.3022271962 | G58: 24349 | H58: 7358.93 | I58: 0 | J58: 0 | K58: 0 | L58: 0 | M58: 0 | N58: 0 | O58: 0 | P58: 0 | Q58: 0 | R58: 0
B59: 85212 | C59: Świadczenia rodzinne, świadczenia z funduszu alimentacyjnego oraz składki na ubezpieczenia emerytalne i rentowe z ubezpieczenia społecznego | D59: 2223041 | E59: 2185782.68 | F59: 0.9832399312 | G59: 189253 | H59: 186445.49 | I59: 30899 | J59: 23212.56 | K59: 0 | L59: 0 | M59: 2002889 | N59: 1976124.63 | O59: 0 | P59: 0 | Q59: 0 | R59: 0
B60: 85213 | C60: Składki na ubezpieczenia zdrowotne opłacane za osoby pobierające niektóre świadczenia z pomocy społecznej, niektóre świadczenia rodzinne oraz za osoby uczestniczące w zajęciach w centum integracji społecznej | D60: 37356 | E60: 34474.1 | F60: 0.9228530892 | G60: 0 | H60: 0 | I60: 37356 | J60: 34474.1 | K60: 0 | L60: 0 | M60: 0 | N60: 0 | O60: 0 | P60: 0 | Q60: 0 | R60: 0
B61: 85214 | C61: Zasiłki i pomoc w naturze | D61: 231374 | E61: 231374 | F61: 1 | G61: 0 | H61: 0 | I61: 0 | J61: 0 | K61: 0 | L61: 0 | M61: 221452 | N61: 221452 | O61: 9922 | P61: 9922 | Q61: 0 | R61: 0
B62: 85215 | C62: Dodatki mieszkaniowe | D62: 3500 | E62: 740.28 | F62: 0.2115085714 | G62: 0 | H62: 0 | I62: 0 | J62: 0 | K62: 0 | L62: 0 | M62: 3500 | N62: 740.28 | O62: 0 | P62: 0 | Q62: 0 | R62: 0
B63: 85216 | C63: Zasiłki stałe | D63: 187841 | E63: 187101.44 | F63: 0.9960628404 | G63: 0 | H63: 0 | I63: 1400 | J63: 660.44 | K63: 0 | L63: 0 | M63: 186441 | N63: 186441 | O63: 0 | P63: 0 | Q63: 0 | R63: 0
B64: 85218 | C64: Powiatowe centra pomocy rodzinie | D64: 18000 | E64: 16270.24 | F64: 0.9039022222 | G64: 0 | H64: 0 | I64: 18000 | J64: 16270.24 | K64: 0 | L64: 0 | M64: 0 | N64: 0 | O64: 0 | P64: 0 | Q64: 0
B65: 85219 | C65: Ośrodki Pomocy Społecznej | D65: 392979 | E65: 387393.36 | F65: 0.9857864161 | G65: 330935 | H65: 326966.03 | I65: 59244 | J65: 58572.26 | K65: 0 | M65: 2800 | N65: 1855.07 | O65: 0 | P65: 0 | Q65: 0 | R65: 0
B66: 85228 | C66: Usługi opiekuńcze i specjalistyczne usługi opiekuńcze | D66: 8473 | E66: 6476.8 | F66: 0.7644045793 | G66: 8373 | H66: 6376.8 | I66: 100 | J66: 100 | K66: 0 | L66: 0 | M66: 0 | N66: 0 | O66: 0 | P66: 0 | Q66: 0 | R66: 0
B67: 85295 | C67: Pozostała działalność | D67: 89474 | E67: 89327.81 | F67: 0.9983661175 | G67: 574 | H67: 427.81 | I67: 0 | J67: 0 | K67: 0 | M67: 88900 | N67: 88900 | O67: 0 | P67: 0 | Q67: 0 | R67: 0
A68: 853 | C68: Pozostałe zadania w zakresie polityki społecznej | D68: =SUM(D69) -> 274913.88 | E68: =SUM(E69) -> 262823.83 | F68: 0.9560224096 | G68: =SUM(G69) -> 0 | H68: 0 | I68: 0 | J68: 0 | K68: 0 | L68: 0 | M68: 0 | N68: 0 | O68: 274913.88 | P68: 262823.83 | Q68: 0 | R68: 0
B69: 85395 | C69: Pozostała działalność | D69: 274913.88 | E69: 262823.83 | F69: 0.9560224096 | G69: 0 | H69: 0 | I69: 0 | J69: 0 | K69: 0 | L69: 0 | M69: 0 | N69: 0 | O69: 274913.88 | P69: 262823.83 | Q69: 0 | R69: 0
A70: 854 | C70: Edukacyjna opieka wychowawcza | D70: =SUM(D71) -> 177725 | E70: =SUM(E71) -> 177725 | F70: 1 | G70: =SUM(G71) -> 0 | H70: 0 | I70: 0 | J70: 0 | K70: 0 | L70: 0 | M70: 177725 | N70: 177725 | O70: 0 | P70: 0 | Q70: 0 | R70: 0
B71: 85415 | C71: Pomoc materialna dla uczniów | D71: 177725 | E71: 177725 | F71: 1 | G71: 0 | H71: 0 | I71: 0 | J71: 0 | K71: 0 | L71: 0 | M71: 177725 | N71: 177725 | O71: 0 | P71: 0 | Q71: 0 | R71: 0
A72: 900 | C72: Gospodarka komunalna i ochrona środowiska | D72: =SUM(D73:D78) -> 854250 | E72: =SUM(E73:E78) -> 779282.87 | F72: 0.9122421656 | G72: =SUM(G73:G78) -> 54200 | H72: 45333.48 | I72: 620050 | J72: 553949.39 | K72: 180000 | L72: 180000 | M72: 0 | N72: 0 | O72: 0 | P72: 0 | Q72: 0 | R72: 0
B73: 90001 | C73: Gospodarka ściekowa i ochrona wód | D73: 180000 | E73: 180000 | F73: 1 | G73: 0 | H73: 0 | I73: 0 | J73: 0 | K73: 180000 | L73: 180000 | M73: 0 | N73: 0 | O73: 0 | P73: 0 | Q73: 0 | R73: 0
B74: 90002 | C74: Gospodarka odpadami | D74: 281950 | E74: 271711.27 | F74: 0.9636860082 | G74: 54200 | H74: 45333.48 | I74: 227750 | J74: 226377.79 | K74: 0 | L74: 0 | M74: 0 | N74: 0 | O74: 0 | P74: 0 | Q74: 0 | R74: 0
B75: 90003 | C75: Oczyszczanie miast i wsi | D75: 8600 | E75: 5556.94 | F75: 0.646155814 | G75: 0 | H75: 0 | I75: 8600 | J75: 5556.94 | K75: 0 | L75: 0 | M75: 0 | N75: 0 | O75: 0 | P75: 0 | Q75: 0 | R75: 0
B76: 90015 | C76: Oswietlenie ulic,placów i dróg | D76: 272100 | E76: 256685.8 | F76: 0.9433509739 | G76: 0 | H76: 0 | I76: 272100 | J76: 256685.8 | K76: 0 | L76: 0 | M76: 0 | N76: 0 | O76: 0 | P76: 0 | Q76: 0 | R76: 0
B77: 90019 | C77: Wpływy i wydatki związane z gromadzeniem środków z opłat i kar za korzystanie ze środowiska | D77: 46600 | E77: 33498.5 | F77: 0.7188519313 | G77: 0 | H77: 0 | I77: 46600 | J77: 33498.5 | K77: 0 | L77: 0 | M77: 0 | N77: 0 | O77: 0 | P77: 0 | Q77: 0 | R77: 0
B78: 90095 | C78: Pozostała działalność | D78: 65000 | E78: 31830.36 | F78: 0.4896978462 | G78: 0 | H78: 0 | I78: 65000 | J78: 31830.36 | K78: 0 | L78: 0 | M78: 0 | N78: 0 | O78: 0 | P78: 0 | Q78: 0 | R78: 0
A79: 921 | C79: Kultura i ochrona dziedzictwa narodowego | D79: =SUM(D80:D81) -> 185000 | E79: =SUM(E80:E81) -> 185000 | F79: 1 | G79: =SUM(G80:G81) -> 0 | H79: 0 | I79: 45000 | J79: 45000 | K79: 140000 | L79: 140000 | M79: 0 | N79: 0 | O79: 0 | P79: 0 | Q79: 0 | R79: 0
B80: 92116 | C80: Biblioteki | D80: 140000 | E80: 140000 | F80: 1 | G80: 0 | H80: 0 | I80: 0 | J80: 0 | K80: 140000 | L80: 140000 | M80: 0 | N80: 0 | O80: 0 | P80: 0 | Q80: 0 | R80: 0
B81: 92195 | C81: Pozostała działalność | D81: 45000 | E81: 45000 | F81: 1 | H81: 0 | I81: 45000 | J81: 45000 | K81: 0 | L81: 0 | M81: 0 | N81: 0 | O81: 0 | P81: 0 | Q81: 0 | R81: 0
A82: 926 | C82: Kultura fizyczna i sport | D82: =SUM(D83:D84) -> 80900 | E82: =SUM(E83:E84) -> 71726.59 | F82: 0.8866080346 | G82: =SUM(G83:G84) -> 600 | H82: 240 | I82: 45300 | J82: 36486.59 | K82: 35000 | L82: 35000 | M82: 0 | N82: 0 | O82: 0 | P82: 0 | Q82: 0 | R82: 0
B83: 92605 | C83: Zadania z zakresu kultury fizycznej i sportu | D83: 61400 | E83: 53669.59 | F83: 0.874097557 | G83: 600 | H83: 240 | I83: 25800 | J83: 18429.59 | K83: 35000 | L83: 35000 | M83: 0 | N83: 0 | O83: 0 | P83: 0 | Q83: 0 | R83: 0
B84: 92695 | C84: Pozostała działalność | D84: 19500 | E84: 18057 | F84: =SUM(E84/D84*100%) -> 0.926 | G84: 0 | H84: 0 | I84: 19500 | J84: 18057 | K84: 0 | L84: 0 | M84: 0 | N84: 0 | O84: 0 | P84: 0 | Q84: 0 | R84: 0
A85: Ogółem wydatki | D85: =SUM(D7+D11+D13+D18+D20+D24+D30+D35+D39+D41+D43+D53+D56+D68+D70+D72+D79+D82) -> 14524265.18 | E85: =SUM(E7+E11+E13+E18+E20+E24+E30+E35+E39+E41+E43+E53+E56+E68+E70+E72+E79+E82) -> 14122030.15 | F85: =SUM(E85/D85*100%) -> 0.9723059979 | G85: =SUM(G7+G11+G13+G18+G20+G24+G30+G35+G39+G41+G43+G53+G56+G68+G70+G72+G79+G82) -> 6876566.91 | H85: 6830715.85 | I85: 3146445.97 | J85: 2848151.64 | K85: 939000 | L85: 930298.71 | M85: 3147416.42 | N85: 3112884.35 | O85: 284835.88 | P85: 272745.83 | Q85: 130000 | R85: 127233.77
B89: Sporządził:
B90: Alicja Miernik

Sheet 2maj
C1: Wydatki majątkowe budżetu gminy - wykonanie za 2015 r.
A5: Dział | B5: Rozdział | C5: Nazwa | D5: Wydatki majątkowe - plan | E5: Wydatki majątkowe -wykonanie | F5: Procent wykonania | G5: w tym:
G7: inwestycje i zakupy inwestycyjne -plan | H7: inwestycje i zakupy inwestycyjne- wykonanie | I7: zakup i objęcie akcji i udziałów -plan | J7: zakup i objęcie akcji i udziałów- wykonanie | K7: wniesienie wkadów do spółek prawa handlowego -plan | L7: wniesienie wkadów do spółek prawa handlowego- wykonanie
A9: 010 | C9: Rolnictwo i Łowiectwo | D9: =SUM(D10:D10) -> 2055729 | E9: =SUM(E10:E10) -> 1815084.13 | F9: =SUM(E9/D9*100%) -> 0.8829394001 | G9: =SUM(G10:G10) -> 2055729 | H9: =SUM(H10:H10) -> 1815084.13
B10: 01010 | C10: Infrastruktura wodociagowa i sanitacyjna wsi | D10: 2055729 | E10: 1815084.13 | F10: 0.8829394001 | G10: =SUM(D10) -> 2055729 | H10: =SUM(E10) -> 1815084.13
A11: 600 | C11: Transport i łączność | D11: =SUM(D12:D12) -> 375000 | E11: =SUM(E12:E12) -> 375000 | F11: 1 | G11: =SUM(G12:G12) -> 375000 | H11: =SUM(H12:H12) -> 375000
B12: 60014 | C12: Drogi publiczne powiatowe | D12: 375000 | E12: 375000 | F12: 1 | G12: 375000 | H12: 375000
A13: 720 | C13: Informatyka | D13: =SUM(D14) -> 251392 | E13: =SUM(E14) -> 100474.54 | F13: 0.399672782 | G13: =SUM(D13) -> 251392 | H13: =SUM(E13) -> 100474.54
B14: 72095 | C14: Pozostała działalność | D14: 251392 | E14: 100474.54 | F14: 0.399672782 | G14: =SUM(D14) -> 251392 | H14: =SUM(E14) -> 100474.54
A15: 801 | C15: Oświata i wychowanie | D15: =SUM(D16) -> 290000 | E15: =SUM(E16) -> 290000 | F15: 1 | G15: =SUM(G16) -> 290000 | H15: =SUM(H16) -> 290000
B16: 80110 | C16: Gimnazja | D16: 290000 | E16: 290000 | F16: 1 | G16: 290000 | H16: 290000
A17: 900 | C17: Gospodarka komunalna i ochrona środowiska | D17: =SUM(D18) -> 49000 | E17: =SUM(E18) -> 48617.89 | F17: 0.9922018367 | G17: =SUM(G18) -> 49000 | H17: =SUM(H18) -> 48617.89
B18: 90001 | C18: Gospodarka ściekowa i ochrona wód | D18: 49000 | E18: 48617.89 | F18: 0.9922018367 | G18: =SUM(D18) -> 49000 | H18: =SUM(E18) -> 48617.89
C19: Ogółem wydatki majątkowe | D19: =SUM(D9+D11+D13+D17+D15) -> 3021121 | E19: =SUM(E9+E11+E13+E17+E15) -> 2629176.56 | F19: 0.8702652294 | G19: =SUM(G9+G11+G13+G17+G15) -> 3021121 | H19: =SUM(H9+H11+H13+H17+H15) -> 2629176.56

Sheet 3
A1: Limity wydatków na wieloletnie przedsięwzięcia planowane do poniesienia w 2015 roku -wykonanie za 2015 r
L2: w złotych
A3: Lp. | B3: Dział | C3: Rozdz. | D3: Nazwa zadania inwestycyjnego i okres realizacji (w latach) | E3: Łączne nakłady finansowe | F3: Planowane wydatki | L3: Jednostka org. realizująca zadanie lub koordynująca program
F4: rok budżetowy 2015 (8+9+10+11) | G4: wykonanie 2015 roku | H4: w tym źródła finansowania
H5: dochody własne jst | I5: kredyty i pożyczki | J5: dotacje i środki pochodzące z innych źr.* | K5: środki wymienione w art. 5 ust. 1 pkt 2 i 3 u.f.p.
A8: 1 | B8: 2 | C8: 3 | D8: 4 | E8: 5 | F8: 7 | H8: 8 | I8: 9 | J8: 10 | K8: 11 | L8: 13
A9: 1. | B9: 010 | C9: 01010 | D9: Budowa kanalizacji sanitarnej w miejscowościach Gózd i Łączna 2009- 2016 | E9: =SUM(E10:E11) -> 5100000 | F9: =SUM(F10:F11) -> 1994229 | G9: 1753584.13 | H9: 775900.13 | I9: 0 | J9: 0 | K9: 977684 | L9: Urząd Gminy
D10: wydatki bieżące
D11: wydatki majątkowe | E11: 5100000 | F11: 1994229 | G11: 1753584.13 | H11: 775900.13 | K11: 977684
A12: 2. | B12: 010 | C12: 01010 | D12: Budowa kanalizacji Występa, Zalezianka, Jaśle, Stawik 2009-2017 | E12: =SUM(E13:E14) -> 15000000 | F12: =SUM(F13:F14) -> 0 | G12: =SUM(G13:G14) -> 0 | L12: Urząd Gminy
D13: wydatki bieżące
D14: wydatki majątkowe | E14: 15000000 | F14: 0 | G14: 0
A15: 3. | B15: 010 | C15: 01010 | D15: B udowa kanalizacji sanitarnej w miejscowości Podzagnańszcze 2014-2017 | E15: =SUM(E17) -> 3000000 | L15: Urząd Gminy
D16: wydatki bieżące
D17: wydatki majątkowe | E17: 3000000
A18: 4. | B18: 720 | C18: 72095 | D18: e-świętokrzyskie - Rozbudowa Infrastruktury Informatycznej 2007-2015 | E18: =SUM(E19:E20) -> 259863 | F18: =SUM(F19:F20) -> 214603 | G18: =SUM(G19:G20) -> 66389.47 | H18: =SUM(H19:H20) -> 9958.41 | K18: =SUM(K19:K20) -> 56431.06 | L18: Urząd Gminy
D19: wydatki bieżące
D20: wydatki majątkowe | E20: 259863 | F20: 214603 | G20: 66389.47 | H20: 9958.41 | K20: 56431.06
A21: 5. | D21: e-świętokrzyskie - Budowa Systemu Informacji Przestrzennej Województwa świętokrzyskiego 2007-2015 | E21: =SUM(E22:E23) -> 85000 | F21: 36789 | G21: 34085.07 | H21: 5112.74 | I21: 0 | J21: 0 | K21: 28972.33 | L21: Urząd Gminy
D22: wydatki bieżące
D23: wydatki majątkowe | E23: 85000 | F23: 36789 | G23: 34085.07 | H23: 5112.74 | K23: 28972.33
A24: 6. | B24: 853 | C24: 85395 | D24: Wyrównywanie szans w Gminie Łączna 2013-2015 | E24: =SUM(E25:E26) -> 571113 | F24: =SUM(F25:F26) -> 190343.88 | G24: =SUM(G25:G26) -> 179949.64 | H24: =SUM(H25:H26) -> 26992.37 | K24: =SUM(K25:K26) -> 152957.27 | L24: Urząd Gminy
D25: wydatki bieżące | E25: 533113 | F25: 190343.88 | G25: =SUM(K25+H25) -> 179949.64 | H25: 26992.37 | K25: 152957.27
D26: wydatki majątkowe | E26: 38000 | F26: 0
A27: 7. | B27: 900 | C27: 90001 | D27: Remont istniejącej oczyszczalni ścieków w Kamionkach poprzez dostawę i montaż urządzeń ( dotacja ) 2014-2015 | E27: =SUM(E28:E29) -> 900000 | F27: =SUM(F28:F29) -> 41000 | G27: =SUM(G28:G29) -> 40650.41 | H27: =SUM(H28:H29) -> 40650.41 | L27: Urząd Gminy
D28: wydatki bieżące
D29: wydatki majątkowe | E29: 900000 | F29: 41000 | G29: 40650.41 | H29: 40650.41
A30: Ogółem wydatki majątkowe | E30: =SUM(E11+E14+E17+E20+E23+E26+E29) -> 24382863 | F30: =SUM(F11+F14+F17+F20+F23+F26+F29) -> 2286621 | G30: 1894709.08 | H30: 831621.69 | I30: 0 | J30: 0 | K30: 1063087.39
A31: Ogółem wydatki bieżące | E31: =SUM(E10+E13+E16+E19+E22+E25+E28) -> 533113 | F31: =SUM(F10+F13+F16+F19+F22+F25+F28) -> 190343.88 | G31: 179949.64 | H31: 26992.37 | I31: 0 | J31: 0 | K31: 152957.27
A32: Razem | E32: =SUM(E30:E31) -> 24915976 | F32: =SUM(F30:F31) -> 2476964.88 | G32: 2074658.72 | H32: 858614.06 | I32: 0 | J32: 0 | K32: 1216044.66

Sheet 4
A1: Zadania inwestycyjne roczne w 2015 r.- wykonanie za 2015 r.
K2: w złotych
A3: Lp. | B3: Dział | C3: Rozdz. | D3: Nazwa zadania inwestycyjnego | E3: Planowane wydatki | K3: Jednostka org. realizująca zadanie lub koordynująca program
E4: rok budżetowy 2015 (7+8+9+10) | F4: rok budzetowy 2015 - wykonanie | G4: w tym źródła finansowania
G5: dochody własne jst | H5: kredyty i pożyczki | I5: dotacje i środki pochodzące z innych źr.* | J5: środki wymienione w art. 5 ust. 1 pkt 2 i 3 u.f.p.
A8: 1 | B8: 2 | C8: 3 | D8: 4 | E8: 6 | G8: 7 | H8: 8 | I8: 9 | J8: 10 | K8: 11
A9: 1. | B9: 010 | C9: 01010 | D9: Budowa kanalizacji w miejscowości Podzagnańszcze - projekt | E9: 61500 | F9: 61500 | K9: Urząd Gminy Łączna
A10: Ogółem | E10: =SUM(E9:E9) -> 61500 | F10: 61500 | G10: 0 | H10: 0 | I10: 0 | J10: 0 | K10: x
A12: * Wybrać odpowiednie oznaczenie źródła finansowania:
A13: A. Dotacje i środki z budżetu państwa (np. od wojewody, MEN, UKFiS, …)
A14: B. Środki i dotacje otrzymane od innych jst oraz innych jednostek zaliczanych do sektora finansów publicznych
A15: C. Inne źródła
A16: D. Inne źródła

Sheet Nr 5
A2: Wydatki na programy i projekty realizowane ze środków pochodzących z budżetu Unii Europejskiej oraz innych źródeł zagranicznych, niepodlegających zwrotowi na 2015r.- wykonanie za 2015 r.
A3: L.p. | B3: Projekt | C3: Okres realizacji zadania | D3: Jednostka org. realizująca zadanie lub koordynująca program | E3: Dział | F3: Rozdział | G3: Przewidywane nakłady i źródła finansowania | I3: Wydatki w roku budżetowym 2015 | J3: Wykonanie za 2015 r.
G4: źródło | H4: kwota
A5: 1 | B5: 2 | C5: 3 | D5: 4 | E5: 5 | F5: 6 | G5: 7 | H5: 8 | I5: 9 | J5: 10
B6: Program: PROW | C6: 2009-2015 | D6: Urząd Gminy | E6: 010 | F6: 01010 | G6: Wartość zadania: | H6: =SUM(H11) -> 5100000 | I6: =SUM(I11) -> 1994229 | J6: =SUM(J11) -> 1753584.13
B7: Priorytet: | G7: Wydatki bieżące:
B8: Działanie:3.2.1 Podstawowe usługi dla gospodarki i ludności wiejskiej | G8: - środki z budżetu j.s.t.
A9: 1. | B9: Projekt: "Budowa kanalizacji sanitarnej w miejscowościach Gózd i Łączna". | G9: - środki z budżetu krajowego
G10: - środki z UE oraz innych źródeł zagranicznych
G11: Wydatki majątkowe: | H11: =SUM(H12:H14) -> 5100000 | I11: =SUM(I12:I14) -> 1994229 | J11: =SUM(J12:J14) -> 1753584.13
G12: - środki z budżetu j.s.t. | H12: 2550000 | I12: 795000 | J12: 775900.13
G13: - środki z budżetu krajowego
G14: - środki z UE oraz innych źródeł zagranicznych | H14: 2550000 | I14: 1199229 | J14: 977684
G15: w tym: kredyty i pożyczki zaciągane na wydatki refundowane ze środków UE
B16: Program: Regionalny Program Operacyjny Województwa Świętokrzyskiego | C16: 2007-2015 | D16: Urząd Gminy | E16: 720 | F16: 72095 | G16: Wartość zadania: | H16: =SUM(H21) -> 259862.8 | I16: =SUM(I21) -> 214603 | J16: =SUM(J21) -> 66389.47
B17: Priorytet:Wspieranie innowacyjności, budowa społeczeństwa informacyjnego oraz wzrost potencjału | G17: Wydatki bieżące:
B18: Działanie:2.2 Budowa infrastruktury społeczeństwa infromacyjnego | G18: - środki z budżetu j.s.t.
A19: 2. | B19: Projekt:"e- świętokrzyskie Rozbudowa Infrastruktury Informatycznej jst 2007-2013" | G19: - środki z budżetu krajowego
G20: - środki z UE oraz innych źródeł zagranicznych
G21: Wydatki majątkowe: | H21: =SUM(H22:H24) -> 259862.8 | I21: =SUM(I22:I24) -> 214603 | J21: =SUM(J22:J24) -> 66389.47
G22: - środki z budżetu j.s.t. | H22: 8623.16 | I22: 32191 | J22: 9958.41
G23: - środki z budżetu krajowego
G24: - środki z UE oraz innych źródeł zagranicznych | H24: 251239.64 | I24: 182412 | J24: 56431.06
B25: Program: Regionalny Program Operacyjny Województwa Świętokrzyskiego | C25: 2007-2015 | D25: Urząd Gminy | E25: 720 | F25: 72095 | G25: Wartość zadania: | H25: 85000 | I25: =SUM(I30) -> 36789 | J25: =SUM(J30) -> 34085.07
B26: Priorytet:Wspieranie innowacyjności, budowa społeczeństwa informacyjnego oraz wzrost potencjału | G26: Wydatki bieżące:
B27: Działanie:2.2 Budowa infrastruktury społeczeństwa infromacyjnego | G27: - środki z budżetu j.s.t.
A28: 3. | B28: Projekt:"e- świętokrzyskie Budowa Systemu Informacji Przestrzennej Województwa Świętokrzyskiego" jst 2007-2013" | G28: - środki z budżetu krajowego
G29: - środki z UE oraz innych źródeł zagranicznych
G30: Wydatki majątkowe: | H30: =SUM(H31:H33) -> 51271 | I30: =SUM(I31:I33) -> 36789 | J30: =SUM(J31:J33) -> 34085.07
G31: - środki z budżetu j.s.t. | H31: 20000 | I31: 5518 | J31: 5112.74
G32: - środki z budżetu krajowego
G33: - środki z UE oraz innych źródeł zagranicznych | H33: 31271 | I33: 31271 | J33: 28972.33
G34: w tym: kredyty i pożyczki zaciągane na wydatki refundowane ze środków UE
B35: Program: Operacyjny Kapitał Ludzki | C35: 2013-2015 | D35: Urząd Gminy | E35: 853 | F35: 85395 | G35: Wartość zadania: | H35: =SUM(H36+H40) -> 571113 | I35: =SUM(I36+I40) -> 190343.88 | J35: =SUM(J36+J40) -> 179949.64
B36: Priorytet: Rozwój wykształcenia i kompetencji w regionie | G36: Wydatki bieżące: | H36: =SUM(H37:H39) -> 533113 | I36: =SUM(I37:I39) -> 190343.88 | J36: =SUM(J37:J39) -> 179949.64
B37: Działanie: 9.1 Wyrównanie szans edukacyjnych i zapewnienie wysokiej jakości usług edukacyjnych świadczonych w systemie oświaty | G37: - środki z budżetu j.s.t.
A38: 4. | B38: Projekt: Wyrównywanie szans w Gminie Łączna | G38: - środki z budżetu krajowego | H38: 79966.95 | I38: 28916.55 | J38: 26992.37
G39: - środki z UE oraz innych źródeł zagranicznych | H39: 453146.05 | I39: 161427.33 | J39: 152957.27
G40: Wydatki majątkowe: | H40: =SUM(H41:H43) -> 38000 | I40: =SUM(I41:I43) -> 0
G41: - środki z budżetu j.s.t.
G42: - środki z budżetu krajowego | H42: 5700 | I42: 0
G43: - środki z UE oraz innych źródeł zagranicznych | H43: 32300 | I43: 0
G44: w tym: kredyty i pożyczki zaciągane na wydatki refundowane ze środków UE
B45: Program: Operacykny Kapitał Ludzki | C45: 2015 | D45: Urząd Gminy | G45: Wartość zadania: | H45: =SUM(H46) -> 94492 | I45: =SUM(I46) -> 94491.55 | J45: =SUM(J46) -> 92796.19
B46: Priorytet: Promocja integracji społecznej | G46: Wydatki bieżące: | H46: =SUM(H47:H49) -> 94492 | I46: =SUM(I47:I49) -> 94491.55 | J46: =SUM(J47:J49) -> 92796.19
B47: Działanie: 7.1 Rozwój i upowszechnienie aktywnej integracji | E47: 852 | F47: 85214 | G47: - środki z budżetu j.s.t. | H47: 9922 | I47: 9922 | J47: 9922
A48: 5. | B48: Projekt: Dziś szansą na lepsze jutro | E48: 853 | F48: 85395 | G48: - środki z budżetu krajowego | H48: 4251.8 | I48: 4251.35 | J48: 4168.54
E49: 853 | F49: 85395 | G49: - środki z UE oraz innych źródeł zagranicznych | H49: 80318.2 | I49: 80318.2 | J49: 78705.65
G50: Wydatki majątkowe:
G51: - środki z budżetu j.s.t.
G52: - środki z budżetu krajowego
G53: - środki z UE oraz innych źródeł zagranicznych
G54: w tym: kredyty i pożyczki zaciągane na wydatki refundowane ze środków UE
B55: Ogółem wydatki | H55: =SUM(H56+H61) -> 6076738.8 | I55: =SUM(I56+I61) -> 2530456.43 | J55: =SUM(J56+J61) -> 2126804.5
B56: Wydatki bieżące: | H56: =SUM(+H58+H59+H57) -> 627605 | I56: =SUM(+I58+I59+I57) -> 284835.43 | J56: =SUM(+J58+J59+J57) -> 272745.83
B57: - środki z budżetu j.s.t. | H57: =SUM(H8+H18+H27+H37+H47) -> 9922 | I57: 9922 | J57: 9922
B58: - środki z budżetu krajowego | H58: 84218.75 | I58: 33167.9 | J58: 31160.91
B59: - środki z UE oraz innych źródeł zagranicznych | H59: 533464.25 | I59: 241745.53 | J59: 231662.92
B60: w tym: kredyty i pożyczki zaciągane na wydatki refundowane ze środków UE
B61: Wydatki majątkowe: | H61: =SUM(H62:H64) -> 5449133.8 | I61: =SUM(I62:I64) -> 2245621 | J61: =SUM(J62:J64) -> 1854058.67
B62: - środki z budżetu j.s.t. | H62: =SUM(H12+H22+H31+H41+H51) -> 2578623.16 | I62: =SUM(I12+I22+I31+I41+I51) -> 832709 | J62: =SUM(J12+J22+J31+J41+J51) -> 790971.28
B63: - środki z budżetu krajowego | H63: =SUM(H42) -> 5700 | I63: =SUM(I42) -> 0 | J63: =SUM(J42) -> 0
B64: - środki z UE oraz innych źródeł zagranicznych | H64: =SUM(H14+H24+H33+H43+H53) -> 2864810.64 | I64: =SUM(I14+I24+I33+I43+I53) -> 1412912 | J64: =SUM(J14+J24+J33+J43+J53) -> 1063087.39
B65: w tym: kredyty i pożyczki zaciągane na wydatki refundowane ze środków UE

Sheet nr 6
A1: Przychody i rozchody budżetu w 2015 r.- wykonanie za 2015r.
D3: w złotych
A4: Lp. | B4: Treść | C4: Klasyfikacja § | D4: Kwota planu 2015 r. | E4: wykonanie 2015 r.
A7: 1 | B7: 2 | C7: 3 | D7: 4
A8: Przychody ogółem: | D8: =SUM(D9:D17) -> 1403000 | E8: =SUM(E9:E17) -> 1403677.76
A9: 1. | B9: Kredyty | C9: § 952 | D9: 1200000 | E9: 1200000
A10: 2. | B10: Pożyczki | C10: § 952
A11: 3. | B11: Pożyczki na finansowanie zadań realizowanych z udziałem środków pochodzących z budżetu UE | C11: § 903
A12: 4. | B12: Spłaty pożyczek udzielonych | C12: § 951
A13: 5. | B13: Prywatyzacja majątku jst | C13: § 941 do 944
A14: 6. | B14: Nadwyżka budżetu z lat ubiegłych | C14: § 957
A15: 7. | B15: Inne papiery wartościowe (obligacje komunalne) | C15: § 931
A16: 8. | B16: Inne źródła (wolne środki) | C16: § 950 | D16: 203000 | E16: 203677.76
A17: 9. | B17: Przelewy z rachunku lokat | C17: § 994
A18: Rozchody ogółem: | D18: =SUM(D19:D25) -> 1194000 | E18: =SUM(E19:E25) -> 1186700
A19: 1. | B19: Spłaty kredytów | C19: § 992 | D19: 1194000 | E19: 1186700
A20: 2. | B20: Spłaty pożyczek | C20: § 992
A21: 3. | B21: Spłaty pożyczek otrzymanych na finansowanie zadań realizowanych z udziałem środków pochodzących z budżetu UE | C21: § 963
A22: 4. | B22: Udzielone pożyczki | C22: § 991
A23: 5. | B23: Lokaty | C23: § 994
A24: 6. | B24: Wykup innych papierów wartościowych (obligacji komunalnych) | C24: § 982
A25: 7. | B25: Rozchody z tytułu innych rozliczeń | C25: § 995

Sheet nr 7
A1: Dochody i wydatki związane z realizacją zadań z zakresu administracji rządowej i innych zadań zleconych odrębnymi ustawami w 2015 r.- wykonanie za 2015 r.
O3: w złotych
A4: Dział | B4: Rozdział | C4: § | D4: Dotacje ogółem | E4: Dotacje wykonanie 2015 r. | F4: w tym:
F5: Wydatki bieżące | H5: w tym: | L5: Wydatki majątkowe | M5: w tym:
G6: Wydatki - wykonanie za 2015 r | H6: Wydatki jednostek budżetowych | J6: Dotacje na zadania bieżące | K6: Świadczenia na rzecz osób fizycznych | M6: inwestycje i zakupy inwestycyjne | N6: zakup i objęcie akcji i udziałów | O6: wniesienie wkadów do spółek prawa handlowego
H7: wynagrodzenia i składki od nich naliczane | I7: wydatki związane z realizacją statutowych zadań
A8: 1 | B8: 2 | C8: 3 | D8: 4 | E8: 5 | F8: 6 | G8: 7 | H8: 8 | I8: 9 | J8: 10 | K8: 11 | L8: 12 | M8: 13 | N8: 14 | O8: 15
A9: 010 | B9: 01095 | C9: 2010 | D9: 19135.18 | E9: 19135.18 | F9: 19135.18 | G9: 19135.18 | I9: 19135.18
A10: 750 | B10: 75011 | C10: 2010 | D10: 37533 | E10: 35915.11 | F10: 37533 | G10: 35915.11 | H10: 35915.11
A11: 751 | B11: 75101 | C11: 2010 | D11: 914 | E11: 914 | F11: 914 | G11: 914 | H11: 914
A12: 751 | B12: 75107 | C12: 2010 | D12: 29985 | E12: 29985 | F12: 29985 | G12: 29985 | H12: 5439.65 | I12: 6545.35 | K12: 18000
A13: 751 | B13: 75108 | C13: 2010 | D13: 17234 | E13: 17234 | F13: 17234 | G13: 17234 | H13: 4644.77 | I13: 3589.23 | K13: 9000
A14: 751 | B14: 75110 | C14: 2010 | D14: 13964 | E14: 13964 | F14: 13964 | G14: 13964 | H14: 3669.68 | I14: 2374.32 | K14: 7920
A15: 801 | B15: 80101 | C15: 2010 | D15: 18794 | E15: 18793.53 | F15: 18794 | G15: 18793.53 | I15: 186.06 | K15: 18607.47
A16: 801 | B16: 80110 | C16: 2010 | D16: 17525 | E16: 17524.54 | F16: 17525 | G16: 17524.54 | I16: 173.51 | K16: 17351.03
A17: 852 | B17: 85212 | C17: 2010 | D17: 2198041 | E17: 2168468.45 | F17: 2198041 | G17: 2168468.45 | H17: 186445.49 | I17: 5898.33 | K17: 1976124.63
A18: 852 | B18: 85213 | C18: 2010 | D18: 20564 | E18: 17881.93 | F18: 20564 | G18: 17881.93 | I18: 17881.93
A19: 852 | B19: 85295 | C19: 2010 | D19: 1974 | E19: 1827.81 | F19: 1974 | G19: 1827.81 | I19: 427.81 | K19: 1400
A20: Ogółem | D20: =SUM(D9:D19) -> 2375663.18 | E20: =SUM(E9:E19) -> 2341643.55 | F20: 2375663.18 | G20: 2341643.55 | H20: 237028.7 | I20: 56211.72 | J20: 0 | K20: 2048403.13

Sheet nr 8
A1: Dochody i wydatki związane z realizacją zadań realizowanych na podstawie porozumień (umów) między jednostkami samorządu terytorialnego w 2015 r.
A4: Nazwa zadania | B4: Dział | C4: Rozdział | D4: Wydatki ogółem | F4: w tym:
F5: Wydatki bieżące | G5: w tym: | N5: Wydatki majątkowe | P5: w tym:
E6: wykonanie 2015 r | G6: Wydatki jednostek budżetowych | I6: Dotacje na zadania bieżące | J6: Świadczenia na rzecz osób fizycznych | K6: Wydatki na programy finansowane z udziałem środków, o których mowa w art. 5 ust. 1 pkt 2 i 3 | L6: Wydatki na obsługę długu (odsetki) | M6: Wydatki z tytułu poręczeń i gwarancji | O6: wykonanie 2015 r | P6: inwestycje i zakupy inwestycyjne | Q6: wykonanie 2015 r
G7: wynagrodzenia i składki od nich naliczane | H7: wydatki związane z realizacją statutowych zadań
A8: 1 | B8: 2 | C8: 3 | F8: 5 | G8: 6 | H8: 7 | I8: 8 | J8: 9 | K8: 10 | L8: 11 | M8: 12 | N8: 13 | P8: 14 | Q8: 16
A9: I. Dochody i wydatki związane z realizacją zadań realizowanych wspólnie z innymi jednostkami samorządu terytorialnego
A12: II. Dochody i wydatki związane z pomocą rzeczową lub finansową realizowaną na podstawie porozumień między j.s.t.
A13: Budowa drogi powiatowej w miejscowości Występa | B13: 600 | C13: 60014 | D13: 375000 | E13: 375000 | N13: =SUM(D13) -> 375000 | O13: 375000 | P13: =SUM(D13) -> 375000 | Q13: 375000
A14: Ogółem | D14: =SUM(D10:D13) -> 375000 | E14: =SUM(E10:E13) -> 375000 | F14: =SUM(F10:F13) -> 0 | G14: 0 | H14: 0 | I14: 0 | J14: 0 | K14: 0 | L14: 0 | M14: 0 | N14: 375000 | O14: 375000 | P14: 375000 | Q14: 375000

Sheet nr 10
A1: Plan dochodów gromadzonych na wydzielonym rachunku jednostki budżetowej
B2: i wydatki nimi finansowane w 2015 r. - wykonanie za 2015 r.
A7: Lp. | B7: Wyszczególnienie | C7: Dział | D7: Rozdział | E7: Stan środków obrotowych na początek roku | F7: Dochody | G7: Dochody- wykonanie 2015 r. | H7: Wydatki | I7: Wydatki- wykonanie 2015 r. | J7: Stan środków obrotowych na koniec roku
A8: 1 | B8: 2 | C8: 3 | D8: 4 | E8: 4 | F8: 5 | G8: 6 | H8: 7 | I8: 8 | J8: 9 | L8: 1032
A9: 1. | B9: Zespół Szkół w Łacznej | C9: 801 | D9: 80110 | E9: 0 | F9: 130020 | G9: 131052.71 | H9: 130020 | I9: 131052.71 | J9: 0
A10: 2. | B10: Szkoła Podstawowa w Gożdzie | C10: 801 | D10: 80101 | E10: 0 | F10: 7005 | G10: 4085.46 | H10: 7005 | I10: 4085.46 | J10: 0
A11: 3. | B11: Przedszkole w Goździe | C11: 801 | D11: 80104 | E11: 0 | F11: 19000 | G11: 13247.5 | H11: 19000 | I11: 13247.5 | J11: 0
A12: Ogółem | F12: =SUM(F9:F11) -> 156025 | G12: =SUM(G9:G11) -> 148385.67 | H12: =SUM(H9:H11) -> 156025 | I12: =SUM(I9:I11) -> 148385.67 | J12: =SUM(J9:J11) -> 0

Sheet nr 9
A1: Plan przychodów i kosztów samorządowych zakładów budżetowych na 2015 r.
A2: - wykonanie za 2015 r.
A5: Lp. | B5: Wyszczególnienie | C5: Dział | D5: Rozdział | E5: Stan środków obrotowych na początek roku | F5: Przychody | J5: Wydatki | L5: Stan środków obrotowych na koniec roku
F6: Plan | G6: wykonanie 2015 r | H6: w tym: dotacja z budżetu | J6: plan | K6: wykonanie 2015 r
H7: przedmiotowa
H8: kwota netto | I8: wykonanie
A9: 1 | B9: 2 | C9: 3 | D9: 4 | E9: 5 | F9: 6 | H9: 7 | I9: 8 | J9: 10 | K9: 11 | L9: 13
A10: 1. | B10: Dostarczanie ciepła | C10: 400 | D10: 40001 | E10: -16092.89 | F10: 328092.89 | G10: 298060.28 | H10: 0 | I10: 0 | J10: 311900 | K10: 262007.61 | L10: =SUM(E10+G10-K10) -> 19959.78
A11: 2. | B11: Dostarczanie wody | C11: 400 | D11: 40002 | E11: -6051.23 | F11: 620051.23 | G11: 552007.88 | H11: 110184.18 | I11: 110184.18 | J11: 613900 | K11: 586794.88 | L11: =SUM(E11+G11-K11) -> -40838.23
A12: 3. | B12: Zimowe utrzymanie dróg gminnych | C12: 600 | D12: 60016 | E12: 0 | F12: 80000 | G12: 80000 | H12: 74073.18 | I12: 74073.18 | J12: 80000 | K12: 80000 | L12: =SUM(E12+G12-K12) -> 0
A13: 3. | B13: Gospodarka ściekowa i ochrona wód | C13: 900 | D13: 90001 | E13: -6799.04 | F13: 305999.04 | G13: 237003.28 | H13: 166666.68 | I13: 166666.68 | J13: 299100 | K13: 278866.98 | L13: =SUM(E13+G13-K13) -> -48662.74
A14: 4. | B14: Zakład Gospodarki Komunalnej | C14: 900 | D14: 90017 | E14: -119953.12 | F14: 192953.12 | G14: 154800.35 | H14: 0 | I14: 0 | J14: 72900 | K14: 37025.2 | L14: =SUM(E14+G14-K14) -> -2177.97
A15: Ogółem | E15: =SUM(E10:E14) -> -148896.28 | F15: 1527096.28 | G15: 1321871.79 | H15: 350924.04 | I15: 350924.04 | J15: 1377800 | K15: 1244694.67 | L15: -71719.16

Sheet nr 11
A1: Dotacje przedmiotowe - wykonanie za 2015 roku
A3: Lp. | B3: Dział | C3: Rozdział | D3: Nazwa jednostki otrzymującej dotację | E3: Zakres | F3: Ogółem kwota dotacji | G3: Wykonanie 2015 r.
A6: 1 | B6: 2 | C6: 3 | D6: 4 | E6: 5 | F6: 6 | G6: 7
A7: I. Dotacje dla jednostek sektora finansów publicznych
A8: 1. | B8: 400 | C8: 40002 | D8: Zakład Gospodarki Komunalnej | E8: dopłata do cen wody | F8: 119000 | G8: 118998.99
A9: 2. | B9: 900 | C9: 90001 | D9: Zakład Gospodarki Komunalnej | E9: dopłata do cen ścieków | F9: 180000 | G9: 180000
A10: 3. | B10: 600 | C10: 60016 | D10: Zakład Gospodarki Komunalnej | E10: dopłata do odśnieżania 1 km drogi | F10: 80000 | G10: 79999.11
A11: II. Dotacje dla jednostek spoza sektora finansów publicznych
A13: Ogółem | F13: =SUM(F8:F10) -> 379000 | G13: =SUM(G8:G10) -> 378998.1

Sheet nr 12
A1: Dotacje podmiotowe - wykonanie za 2015 r.
A4: Lp. | B4: Dział | C4: Rozdział | D4: Nazwa instytucji | E4: Kwota dotacji | F4: Wykonanie 2015 r.
A5: 1 | B5: 2 | C5: 3 | D5: 4 | E5: 5
A6: I. Dotacje dla jednostek sektora finansów publicznych
A7: 1. | B7: 921 | C7: 92116 | D7: Gminna instytucja kultury - biblioteka gminna | E7: 140000 | F7: 140000
A8: II. Dotacje dla jednostek spoza sektora finansów publicznych
A9: 1. | B9: 801 | C9: 80101 | D9: Stowarzyszenie Rozwoju Społecznego "Zalezianka" | E9: 375000 | F9: 371300.61
A10: Ogółem | E10: =SUM(E7+E9) -> 515000 | F10: =SUM(F7+F9) -> 511300.61

Sheet nr 13
A1: Dotacje celowe - wykonanie za 2015 r.
A3: Lp. | B3: Dział | C3: Rozdział | D3: Nazwa zadania | E3: Jednostka otrzymująca dotację | F3: Kwota dotacji | G3: Wykonanie 2015 r.
A4: 1 | B4: 2 | C4: 3 | D4: 4 | E4: 5 | F4: 5
A5: I. Dotacje dla jednostek sektora finansów publicznych
A6: 1. | B6: 600 | C6: 60014 | D6: Pomoc finansowa na wspólfinansowanie budowy drogi powiatowej w miejscowości Występa | E6: Starostwo powiatowe | F6: 375000 | G6: 375000
A7: 2. | B7: 900 | C7: 90001 | D7: Dotacje celowe z budżetu na finansowanie lub dofinansowanie kosztów realizacji inwestycji i zakupów inwestycyjnych samorządowych zakładów budżetowych jako wkład własny na realizację projektu pn." Remont istniejącej oczyszczalni ścieków w Kamionkach poprzez dostawę i montaż urządzeń." | E7: Zakład Gospodarki Komunalnej w Łącznej | F7: 41000 | G7: 40650.41
A8: 3. | B8: 900 | C8: 90001 | D8: Dotacje celowe z budżetu na finansowanie lub dofinansowanie kosztów realizacji inwestycji i zakupów inwestycyjnych samorządowych zakładów budżetowych- zakup pompy na przepompownię ścieków w Kamionkach | E8: Zakład Gospodarki Komunalnej w Łącznej | F8: 8000 | G8: 7967.48
A9: II. Dotacje dla jednostek spoza sektora finansów publicznych
A10: 1. | B10: 851 | C10: 85154 | D10: Zorganizowanie wypoczynku letniego dla dzieci z rodzin, w których występuje problem alkoholowy | E10: wyłoniona w drodze konkursu | F10: 10000 | G10: 5000
A11: 2. | B11: 926 | C11: 92605 | D11: Dotacja celowa z budżetu na finansowanie lub dofinansowanie zadań - na zadania z zakresu kultury fizycznej i sportu | E11: wyłoniona w drodze konkursu | F11: 35000 | G11: 35000
A12: Ogółem | F12: =SUM(F6+F7+F10+F11+F8) -> 469000 | G12: =SUM(G6+G7+G10+G11+G8) -> 463617.89

Sheet 13

Sheet zmwyd
P1: w złotych
A2: Dział | B2: Rozdział | C2: Nazwa | D2: Plan na 2010 r. | E2: w tym:
E3: Wydatki bieżące | F3: w tym: | M3: Wydatki majątkowe | N3: w tym:
F4: Wydatki jednostek budżetowych | H4: Dotacje na zadania bieżące | I4: Świadczenia na rzecz osób fizycznych | J4: Wydatki na programy finansowane z udziałem środków, o których mowa w art. 5 ust. 1 pkt 2 i 3 | K4: Wydatki na na obsługę długu (odsetki) | L4: Wydatki z tytułu poręczeń i gwarancji | N4: inwestycje i zakupy inwestycyjne | O4: zakup i objęcie akcji i udziałów | P4: wniesienie wkadów do spółek prawa handlowego
F5: wynagrodzenia i skadki od nich naliczane | G5: wydatki związane z realizacją statutowych zadań
A6: 1 | B6: 2 | C6: 3 | D6: 4 | E6: 5 | F6: 6 | G6: 7 | H6: 8 | I6: 9 | J6: 10 | K6: 11 | L6: 12 | M6: 13 | N6: 14 | O6: 15 | P6: 16
A7: 010 | C7: Rolnictwo i Łowiectwo | D7: =SUM(D8:D10) -> 800175 | E7: 42375 | F7: 0 | G7: =SUM(G8:G10) -> 42375 | H7: 0 | I7: 0 | J7: 0 | K7: 0 | L7: 0 | M7: 757800 | N7: 757800 | O7: 0 | P7: 0
B8: 01010 | C8: Infrastruktura wodociagowa i sanitacyjna wsi | D8: 758075 | E8: 275 | F8: 0 | G8: 275 | H8: 0 | I8: 0 | K8: 0 | L8: 0 | M8: 757800 | N8: 757800 | O8: 0 | P8: 0
B9: 01030 | C9: Izby rolnicze | D9: 2100 | E9: 2100 | F9: 0 | G9: 2100 | H9: 0 | I9: 0 | J9: 0 | K9: 0 | L9: 0 | M9: 0 | N9: 0 | O9: 0 | P9: 0
B10: 01095 | C10: Pozostała działalność | D10: 40000 | E10: 40000 | F10: 0 | G10: 40000 | H10: 0 | I10: 0 | J10: 0 | K10: 0 | L10: 0 | M10: 0 | N10: 0 | P10: 0
A11: 400 | C11: Wytwarzanie i zaopatrywanie w energię elektryczną, gaz i wodę | D11: =SUM(D12) -> 130000 | E11: =SUM(E12) -> 130000 | F11: 0 | G11: 0 | H11: =SUM(H12) -> 130000 | I11: 0 | J11: 0 | L11: 0 | M11: 0 | N11: 0 | O11: 0 | P11: 0
B12: 40002 | C12: Dostarczanie wody | D12: 130000 | E12: 130000 | F12: 0 | G12: 0 | H12: 130000 | I12: 0 | J12: 0 | K12: 0 | L12: 0 | M12: 0 | N12: 0 | O12: 0 | P12: 0
A13: 600 | C13: Transport i łączność | D13: =SUM(D14:D18) -> 1144868 | E13: 200368 | F13: 52900 | G13: 146868 | H13: 0 | I13: 600 | J13: 0 | M13: =SUM(M14:M18) -> 944500 | N13: =SUM(N14:N18) -> 944500 | O13: 0 | P13: 0
B14: 60004 | C14: Lokalny transport zbiorowy | D14: 24000 | E14: 24000 | F14: 0 | G14: 24000 | H14: 0 | J14: 0 | K14: 0 | L14: 0 | M14: 0 | N14: 0 | O14: 0 | P14: 0
B15: 60014 | C15: Drogi publiczne powiatowe | D15: 543800 | E15: 11500 | F15: 0 | G15: 11500 | H15: 0 | I15: 0 | K15: 0 | L15: 0 | M15: 532300 | N15: 532300 | O15: 0 | P15: 0
B16: 60016 | C16: Drogi publiczne gminne | D16: 208000 | E16: 158000 | F16: 52900 | G16: 89500 | H16: 15000 | I16: 600 | J16: 0 | K16: 0 | L16: 0 | M16: 50000 | N16: 50000 | O16: 0 | P16: 0
D17: =SUM(G17:H17) -> 6868 | E17: =SUM(G17:H17) -> 6868 | G17: 21868 | H17: -15000
B18: 60095 | C18: Pozostała działalność | D18: 362200 | E18: 0 | F18: 0 | G18: 0 | H18: 0 | I18: 0 | J18: 0 | K18: 0 | L18: 0 | M18: 362200 | N18: 362200 | O18: 0 | P18: 0
A19: 700 | C19: Gospodarka mieszkaniowa | D19: =SUM(D20) -> 26000 | E19: =SUM(E20) -> 26000 | F19: 0 | G19: =SUM(G20) -> 26000 | H19: 0 | I19: 0 | J19: 0 | K19: 0 | L19: 0 | M19: 0 | N19: 0 | O19: 0 | P19: 0
B20: 70005 | C20: Gospodarka gruntami i nieruchomościami | D20: 26000 | E20: 26000 | F20: 0 | G20: 26000 | H20: 0 | I20: 0 | J20: 0 | K20: 0 | L20: 0 | M20: 0 | N20: 0 | O20: 0 | P20: 0
A21: 710 | C21: Działalność usługowa | D21: =SUM(D22:D24) -> 62211 | E21: =SUM(E22:E24) -> 62211 | F21: 0 | G21: =SUM(G22:G24) -> 62211 | H21: 0 | I21: 0 | J21: 0 | K21: 0 | L21: 0 | M21: 0 | N21: 0 | O21: 0 | P21: 0
B22: 71004 | C22: Plany zagospodarowania przestrzennego | D22: 60000 | E22: 60000 | F22: 0 | G22: 60000 | H22: 0 | I22: 0 | J22: 0 | K22: 0 | L22: 0 | M22: 0 | N22: 0 | O22: 0 | P22: 0
B23: 71035 | C23: Cmentarze | D23: 1711 | E23: 1711 | F23: 0 | G23: 1711 | H23: 0 | I23: 0 | J23: 0 | K23: 0 | L23: 0 | M23: 0 | N23: 0 | O23: 0 | P23: 0
B24: 71095 | C24: Pozostała działalność | D24: 500 | E24: 500 | F24: 0 | G24: 500 | H24: 0 | I24: 0 | J24: 0 | K24: 0 | L24: 0 | M24: 0 | N24: 0 | O24: 0 | P24: 0
A25: 750 | C25: Administracja publiczna | D25: =SUM(D26:D30) -> 1385100 | E25: =SUM(E26:E30) -> 1290375 | F25: =SUM(F26:F30) -> 990775 | G25: =SUM(G26:G30) -> 209100 | H25: 0 | I25: =SUM(I26:I30) -> 90500 | J25: 0 | K25: 0 | L25: 0 | M25: =SUM(M26:M30) -> 94725 | N25: =SUM(N26:N30) -> 94725 | O25: 0 | P25: 0
B26: 75011 | C26: Urzędy Wojewódzkie | D26: 47775 | E26: 47775 | F26: 41775 | G26: 6000 | H26: 0 | I26: 0 | J26: 0 | K26: 0 | L26: 0 | M26: 0 | N26: 0 | O26: 0 | P26: 0
B27: 75022 | C27: Rady Gmin | D27: 83000 | E27: 83000 | F27: 0 | G27: 5000 | H27: 0 | I27: 78000 | J27: 0 | K27: 0 | L27: 0 | M27: 0 | N27: 0 | O27: 0 | P27: 0
B28: 75023 | C28: Urzędy Gmin | D28: 1230325 | E28: 1135600 | F28: 949000 | G28: 186100 | H28: 0 | I28: 500 | J28: 0 | K28: 0 | L28: 0 | M28: 94725 | N28: 94725 | O28: 0 | P28: 0
B29: 75075 | C29: Promocja jednostek samorządu terytorialnego | D29: 12000 | E29: 12000 | F29: 0 | G29: 12000 | H29: 0 | I29: 0 | J29: 0 | K29: 0 | L29: 0 | M29: 0 | N29: 0 | O29: 0 | P29: 0
B30: 75095 | C30: Pozostała działalność | D30: 12000 | E30: 12000 | F30: 0 | G30: 0 | H30: 0 | I30: 12000 | J30: 0 | K30: 0 | L30: 0 | M30: 0 | N30: 0 | O30: 0 | P30: 0
A31: 751 | C31: Urzędy naczelnych organów władzy, kontroli i ochrony prawa oraz sądownictwa | D31: =SUM(D32) -> 876 | E31: 876 | F31: 876 | G31: 0 | H31: 0 | I31: 0 | J31: 0 | K31: 0 | L31: 0 | M31: 0 | N31: 0 | O31: 0 | P31: 0
B32: 75101 | C32: Urzędy naczelnych organów władzy, kontroli i ochrony prawa | D32: 876 | E32: 876 | F32: 876 | G32: 0 | H32: 0 | I32: 0 | J32: 0 | K32: 0 | L32: 0 | M32: 0 | N32: 0 | O32: 0 | P32: 0
A33: 754 | C33: Bezpieczeństwo publiczne i ochrona przeciwpożarowa | D33: =SUM(D34:D36) -> 85000 | E33: =SUM(E34:E36) -> 75000 | F33: =SUM(F34:F36) -> 14000 | G33: =SUM(G34:G36) -> 61000 | H33: 0 | I33: 0 | J33: 0 | K33: 0 | L33: 0 | M33: =SUM(M34:M36) -> 10000 | N33: =SUM(N34:N36) -> 10000 | O33: 0 | P33: 0
B34: 75411 | C34: Komendy powiatowe Państwowej Straży Pożarnej | D34: 30000 | E34: 30000 | F34: 0 | G34: 30000 | H34: 0 | I34: 0 | J34: 0 | K34: 0 | L34: 0 | M34: 0 | N34: 0 | O34: 0 | P34: 0
B35: 75412 | C35: Ochotnicze straże pożarne | D35: 53000 | E35: 43000 | F35: 14000 | G35: 29000 | H35: 0 | I35: 0 | J35: 0 | K35: 0 | L35: 0 | M35: 10000 | N35: 10000 | O35: 0 | P35: 0
B36: 75421 | C36: Zarządzanie kryzysowe | D36: 2000 | E36: 2000 | F36: 0 | G36: 2000 | H36: 0 | I36: 0 | J36: 0 | K36: 0 | L36: 0 | M36: 0 | N36: 0 | O36: 0 | P36: 0
A37: 756 | C37: Dochody od osób prawnych, od osób fizycznych i od innych jednostek nieposiadających osobowości prawnej oraz wydatków związanych z ich poborem | D37: =SUM(D38) -> 34000 | E37: 34000 | F37: 13000 | G37: 21000 | H37: 0 | I37: 0 | J37: 0 | K37: 0 | L37: 0 | M37: 0 | N37: 0 | O37: 0 | P37: 0
B38: 75647 | C38: Pobór podatków, opłat i niepodatkowych należności budżetowych | D38: 34000 | E38: 34000 | F38: 13000 | G38: 21000 | H38: 0 | I38: 0 | J38: 0 | K38: 0 | L38: 0 | M38: 0 | N38: 0 | O38: 0 | P38: 0
A39: 757 | C39: Obsługa długu publicznego | D39: =SUM(D40) -> 240000 | E39: 240000 | F39: 0 | G39: 0 | H39: 0 | I39: 0 | J39: 0 | K39: 240000 | L39: 0 | M39: 0 | N39: 0 | O39: 0 | P39: 0
B40: 75702 | C40: Obsługa papierów wartościowych, kredytów i pożyczek jst | D40: 240000 | E40: 240000 | F40: 0 | G40: 0 | H40: 0 | I40: 0 | J40: 0 | K40: 240000 | L40: 0 | M40: 0 | N40: 0 | O40: 0 | P40: 0
A41: 758 | C41: Różne rozliczenia | D41: =SUM(D42) -> 80000 | E41: 80000 | F41: 0 | G41: 80000 | H41: 0 | I41: 0 | J41: 0 | K41: 0 | L41: 0 | M41: 0 | N41: 0 | O41: 0 | P41: 0
B42: 75818 | C42: Rezerwy ogólne i celowe | D42: 80000 | E42: 80000 | F42: 0 | G42: 80000 | H42: 0 | I42: 0 | J42: 0 | K42: 0 | L42: 0 | M42: 0 | N42: 0 | O42: 0 | P42: 0
A43: 801 | C43: Oświata i wychowanie | D43: =SUM(D44:D53) -> 8551323 | E43: =SUM(E44:E53) -> 4861323 | F43: 3817746 | G43: 804277 | H43: 19000 | I43: 220300 | J43: 0 | K43: 0 | L43: 0 | M43: 3690000 | N43: 3690000 | O43: 0 | P43: 0
B44: 80101 | C44: Szkoły podstawowe | D44: 2929937 | E44: 2929937 | F44: 2332602 | G44: 462835 | H44: 0 | I44: 134500 | J44: 0 | K44: 0 | L44: 0 | M44: 0 | N44: 0 | O44: 0 | P44: 0
D45: =SUM(F45) -> -23114 | E45: =SUM(F45) -> -23114 | F45: -23114
B46: 80103 | C46: Oddziały przedszkolne w szkołach podstawowych | D46: 256450 | E46: 256450 | F46: 215900 | G46: 24750 | H46: 0 | I46: 15800 | J46: 0 | K46: 0 | L46: 0 | M46: 0 | N46: 0 | O46: 0 | P46: 0
B47: 80104 | C47: Przedszkola | D47: 182900 | E47: 182900 | F47: 160000 | G47: 15900 | H47: 0 | I47: 7000 | J47: 0 | K47: 0 | L47: 0 | M47: 0 | N47: 0 | O47: 0 | P47: 0
B48: 80110 | C48: Gimnazja | D48: 4961300 | E48: 1271300 | F48: 1102208 | G48: 106092 | H48: 0 | I48: 63000 | J48: 0 | K48: 0 | L48: 0 | M48: 3690000 | N48: 3690000 | O48: 0 | P48: 0
D49: =SUM(F49) -> -7000 | E49: =SUM(F49) -> -7000 | F49: -7000
B50: 80113 | C50: Dowożenie uczniów do szkół | D50: 167000 | E50: 167000 | F50: 0 | G50: 148000 | H50: 19000 | I50: 0 | J50: 0 | K50: 0 | L50: 0 | M50: 0 | N50: 0 | O50: 0 | P50: 0
B51: 80146 | C51: Dokształacanie i doskonalenie nauczycieli | D51: 8300 | E51: 8300 | F51: 0 | G51: 8300 | H51: 0 | I51: 0 | J51: 0 | K51: 0 | L51: 0 | M51: 0 | N51: 0 | O51: 0 | P51: 0
B52: 80195 | C52: Pozostała działalność | D52: 34800 | E52: 34800 | F52: 0 | G52: 34800 | H52: 0 | I52: 0 | J52: 0 | K52: 0 | L52: 0 | M52: 0 | N52: 0 | O52: 0 | P52: 0
D53: =SUM(F53:G53) -> 40750 | E53: =SUM(F53:G53) -> 40750 | F53: 37150 | G53: 3600
A54: 851 | C54: Ochrona zdrowia | D54: =SUM(D55:D57) -> 53100 | E54: =SUM(E55:E57) -> 53100 | F54: 17300 | G54: 25800 | H54: 10000 | I54: 0 | J54: 0 | K54: 0 | L54: 0 | M54: 0 | N54: 0 | O54: 0 | P54: 0
B55: 85153 | C55: Zwalczanie narkomanii | D55: 6000 | E55: 6000 | F55: 0 | G55: 6000 | H55: 0 | I55: 0 | J55: 0 | K55: 0 | L55: 0 | M55: 0 | N55: 0 | O55: 0 | P55: 0
B56: 85154 | C56: Przeciwdziałanie alkoholizmowi | D56: 44000 | E56: 44000 | F56: 17300 | G56: 16700 | H56: 10000 | I56: 0 | J56: 0 | K56: 0 | L56: 0 | M56: 0 | N56: 0 | O56: 0 | P56: 0
D57: 3100 | E57: 3100 | G57: 3100
A58: 852 | C58: Pomoc społeczne | D58: =SUM(D59:D69) -> 2629892 | E58: =SUM(E59:E69) -> 2629892 | F58: 316987 | G58: 107166 | H58: 0 | I58: 2205739 | J58: 0 | K58: 0 | L58: 0 | M58: 0 | N58: 0 | O58: 0 | P58: 0
B59: 85202 | C59: Pomy pomocy społecznej | D59: 44040 | E59: 44040 | F59: 0 | G59: 44040 | H59: 0 | I59: 0 | J59: 0 | K59: 0 | L59: 0 | M59: 0 | N59: 0 | O59: 0 | P59: 0
B60: 85212 | C60: Świadczenia rodzinne oiraz składki na ubezpieczenia emerytalne i rentowe z ubezpieczenia społecznego | D60: 2018625 | E60: 2018625 | F60: 69929 | G60: 12502 | H60: 0 | I60: 1936194 | J60: 0 | K60: 0 | L60: 0 | M60: 0 | N60: 0 | O60: 0 | P60: 0
B61: 85213 | C61: Składki na ubezpieczenia zdrowotne opłacane za osoby pobierające niektóre świadczenia z pomocy społecznej, niektóre świadczenia rodzinne oraz za osoby uczestniczące w zajęciach w centum integracji społecznej | D61: 18034 | E61: 18034 | F61: 18034 | G61: 0 | H61: 0 | I61: 0 | J61: 0 | K61: 0 | L61: 0 | M61: 0 | N61: 0 | O61: 0 | P61: 0
B62: 85214 | C62: Zasiłki i pomoc w naturze | D62: 80234 | E62: 80234 | F62: 0 | G62: 0 | H62: 0 | I62: 80234 | J62: 0 | K62: 0 | L62: 0 | M62: 0 | N62: 0 | O62: 0 | P62: 0
B63: 85215 | C63: Dodatki mieszkaniowe | D63: 8500 | E63: 8500 | F63: 0 | G63: 0 | H63: 0 | I63: 8500 | J63: 0 | K63: 0 | L63: 0 | M63: 0 | N63: 0 | O63: 0 | P63: 0
B64: 85216 | C64: Zasiłki stałe | D64: 118970 | E64: 118970 | F64: 0 | G64: 0 | H64: 0 | I64: 118970 | J64: 0 | K64: 0 | L64: 0 | M64: 0 | N64: 0 | O64: 0 | P64: 0
B65: 85219 | C65: Ośrodki Pomocy Społecznej | D65: 216099 | E65: 216099 | F65: 181636 | G65: 33263 | H65: 0 | I65: 1200 | J65: 0 | K65: 0 | L65: 0 | M65: 0 | N65: 0 | O65: 0 | P65: 0
D66: =SUM(F66) -> 3000 | E66: =SUM(F66) -> 3000 | F66: 3000
B67: 85228 | C67: Usługi opiekuńcze i specjalistyczne usługi opiekuńcze | D67: 27349 | E67: 27349 | F67: 25388 | G67: 1261 | H67: 0 | I67: 700 | J67: 0 | K67: 0 | L67: 0 | M67: 0 | N67: 0 | O67: 0 | P67: 0
B68: 85295 | C68: Pozostała działalność | D68: 65100 | E68: 65100 | F68: 19000 | G68: 16100 | H68: 0 | I68: 30000 | J68: 0 | K68: 0 | L68: 0 | M68: 0 | N68: 0 | O68: 0 | P68: 0
D69: =SUM(I69) -> 29941 | E69: =SUM(I69) -> 29941 | I69: 29941
A70: 854 | C70: EDUKACYJNAIOPIEKA | D70: =SUM(D71) -> 71159 | E70: =SUM(E71) -> 71159 | F70: 0 | G70: 0 | H70: 0 | I70: 71159 | J70: 0 | K70: 0 | L70: 0 | M70: 0 | N70: 0 | O70: 0
B71: 85415 | C71: Pomoc materialna dla uczniów | D71: 71159 | E71: 71159 | I71: 71159
A72: 900 | C72: Gospodarka komunalna i ochrona środowiska | D72: =SUM(D73:D77) -> 351000 | E72: =SUM(E73:E77) -> 351000 | F72: =SUM(F73:F77) -> 0 | G72: =SUM(G73:G77) -> 281000 | H72: =SUM(H73:H77) -> 70000 | I72: 0 | J72: 0 | K72: 0 | L72: 0 | M72: 0 | N72: 0 | O72: 0 | P72: 0
B73: 90001 | C73: Gospodarka ściekowa i ochrona wód | D73: 70000 | E73: 70000 | F73: 0 | G73: 0 | H73: 70000 | I73: 0 | J73: 0 | K73: 0 | L73: 0 | M73: 0 | N73: 0 | O73: 0 | P73: 0
B74: 90003 | C74: Oczyszczanie miast i wsi | D74: 26000 | E74: 26000 | F74: 0 | G74: 26000 | H74: 0 | I74: 0 | J74: 0 | K74: 0 | L74: 0 | M74: 0 | N74: 0 | O74: 0 | P74: 0
B75: 90015 | C75: Oswietlenie ulic,placów i dróg | D75: 215000 | E75: 215000 | F75: 0 | G75: 215000 | H75: 0 | I75: 0 | J75: 0 | K75: 0 | L75: 0 | M75: 0 | N75: 0 | O75: 0 | P75: 0
B76: 90019 | D76: =SUM(G76) -> 35000 | E76: =SUM(G76) -> 35000 | G76: 35000
B77: 90095 | C77: Pozostała działalność | D77: 5000 | E77: 5000 | F77: 0 | G77: 5000 | H77: 0 | I77: 0 | J77: 0 | K77: 0 | L77: 0 | M77: 0 | N77: 0 | O77: 0 | P77: 0
A78: 921 | C78: Kultura i ochrona dziedzictwa narodowego | D78: =SUM(D79:D80) -> 110000 | E78: =SUM(E79:E80) -> 110000 | F78: =SUM(F79:F80) -> 0 | G78: =SUM(G79:G80) -> 40000 | H78: =SUM(H79:H80) -> 70000 | I78: 0 | J78: 0 | K78: 0 | L78: 0 | M78: 0 | N78: 0 | O78: 0 | P78: 0
B79: 92116 | C79: Biblioteka | D79: 70000 | E79: 70000 | F79: 0 | G79: 0 | H79: 70000 | I79: 0 | J79: 0 | K79: 0 | L79: 0 | M79: 0 | N79: 0 | O79: 0 | P79: 0
B80: 92195 | C80: Pozostała działalność | D80: 40000 | E80: 40000 | F80: 0 | G80: 40000 | H80: 0 | I80: 0 | J80: 0 | K80: 0 | L80: 0 | M80: 0 | N80: 0 | O80: 0 | P80: 0
A81: 926 | C81: Kultura fizyczna i sport | D81: =SUM(D82:D83) -> 75000 | E81: =SUM(E82:E83) -> 75000 | F81: =SUM(F82:F83) -> 5000 | G81: =SUM(G82:G83) -> 30000 | H81: =SUM(H82:H83) -> 40000 | I81: 0 | J81: 0 | K81: 0 | L81: 0 | M81: 0 | N81: 0 | O81: 0 | P81: 0
B82: 92605 | C82: Zadania z zakresu kultury fizycznej i sportu | D82: 45000 | E82: 45000 | F82: 0 | G82: 5000 | H82: 40000 | I82: 0 | J82: 0 | K82: 0 | L82: 0 | M82: 0 | N82: 0 | O82: 0 | P82: 0
B83: 92695 | C83: Pozostała działalność | D83: 30000 | E83: 30000 | F83: 5000 | G83: 25000 | H83: 0 | I83: 0 | J83: 0 | K83: 0 | L83: 0 | M83: 0 | N83: 0 | O83: 0 | P83: 0
A84: Ogółem wydatki | D84: =SUM(D7+D11+D13+D19+D21+D25+D31+D33+D37+D39+D41+D43+D54+D58+D72+D78+D81+D70) -> 15829704 | E84: =SUM(E7+E11+E13+E19+E21+E25+E31+E33+E37+E39+E41+E43+E54+E58+E72+E78+E81+E70) -> 10332679 | F84: 5228584 | G84: 1936797 | H84: 339000 | I84: 2588298 | J84: 0 | K84: 240000 | L84: 0 | M84: 5497025 | N84: 5497025 | O84: 0 | P84: 0
